Workbook

Sheet Прайс VERTON
E1: Пропишите вашу скидку | H1: Итого обьем, м3 | I1: Итого вес, кг | J1: Итого количество, шт
E2: Ваша скидка | F2: 0
D4: Итого | E4: Сумма вашей заявки | F4: =SUMPRODUCT($D$7:$D$424,$H$7:$H$424) -> 0
A5: ИТОГО | H5: =SUMPRODUCT(H8:H429,F8:F429) -> 0 | I5: =SUMPRODUCT(H8:H429,G8:G429) -> 0 | J5: =SUM(H8:H429) -> 0 | N5: В наличии | O5: В пути | P5: Нет в наличии
A6: Наименование товаров | B6: Артикул | C6: Цена(опт) | D6: Ваша цена | E6: Цена МРЦ | F6: Объем, м3 | G6: Вес, кг | H6: Заявка | I6: Остаток Хабаровск | J6: Остаток Новосибирск | K6: Остаток Екатеринбург | L6: Остаток Москва | M6: Ссылка
A7: Дизельные пушки VERTON
A8: Дизельная тепловая пушка Verton Air DH-10 (10кВт,500м3/ч.,0,8л/ч, прям. нагрев, дисплей, манометр, дизель/керосин, сливная горловина) | B8: 01.9671.12480 | C8: 15330 | D8: =C8-C8*$F$2/100 -> 15330 | E8: 19990 | F8: 0.08 | G8: 12 | M8: УТ000012480
A9: Дизельная тепловая пушка Verton Air DH-15 (15кВт,540м3/ч.,1,1л/ч,прям. нагрев,дисплей,манометр,дизель/керосин) | B9: 01.5985.6756 | C9: 18525 | D9: =C9-C9*$F$2/100 -> 18525 | E9: 24150 | F9: 0.138 | G9: 15 | M9: УТ000006756
A10: Дизельная тепловая пушка Verton Air DH-15 NEW (15кВт,540м3/ч.,1,1л/ч,прям. нагрев,дисплей,манометр,дизель/керосин) | B10: 01.12775.17961 | C10: 15725 | D10: =C10-C10*$F$2/100 -> 15725 | E10: 20510 | F10: 0.08 | G10: 12 | M10: УТ000017961
A11: Дизельная тепловая пушка Verton Air DH-24 (24кВт,588м3/ч.,1,4л/ч,прям. нагрев,дисплей,манометр,дизель/керосин) | B11: 01.5985.6757 | C11: 17835 | D11: =C11-C11*$F$2/100 -> 17835 | E11: 23260 | F11: 0.14 | G11: 14 | M11: УТ000006757
A12: Дизельная тепловая пушка Verton Air DH-24D (24кВт,588м3/ч.,1,4л/ч,непрям.нагрев,дисплей,манометр,дизель/керосин, габар. 84,5х44,5х62см, d 23см) | B12: 01.12775.13447 | C12: 25885 | D12: =C12-C12*$F$2/100 -> 25885 | E12: 32460 | F12: 0.1788 | G12: 24 | M12: УТ000013447
A13: Дизельная тепловая пушка Verton Air DH-36D (36кВт,750м3/ч.,2,1л/ч,непрям.нагрев,дисплей,манометр,дизель/керосин 106,5х48х74,5см, d 26см) | B13: 01.12775.13448 | C13: 35780 | D13: =C13-C13*$F$2/100 -> 35780 | E13: 44860 | F13: 0.26235 | G13: 34 | M13: УТ000013448
A14: Дизельная тепловая пушка Verton Air DH-36 (36кВт,750м3/ч.,2,1л/ч,прям. нагрев,дисплей,манометр,дизель/керосин) | B14: 01.5985.6758 | C14: 21150 | D14: =C14-C14*$F$2/100 -> 21150 | E14: 27570 | F14: 0.21 | G14: 20.5 | M14: УТ000006758
A15: Дизельная тепловая пушка Verton Air DH-50 (50кВт,980м3/ч.,3,2л/ч,прям. нагрев,дисплей,манометр,дизель/керосин) | B15: 01.5985.6759 | C15: 25085 | D15: =C15-C15*$F$2/100 -> 25085 | E15: 32710 | F15: 0.21 | G15: 21 | M15: УТ000006759
A16: Дизельная тепловая пушка Verton Air DH-120 (120кВт,4100м3/ч.,9,6л/ч,прям.нагрев,дисплей,манометр,дизель/керосин 131х57х69см, d 34см) | B16: 01.12775.13446 | C16: 56015 | D16: =C16-C16*$F$2/100 -> 56015 | E16: 70230 | F16: 0.5313 | G16: 48 | M16: УТ000013446
A17: Дизельная тепловая пушка Verton Air DH-60 (60кВт,1230м3/ч,4,2л/ч,прям. нагрев,дисплей,манометр,дизель/керосин) | B17: 01.5985.6760 | C17: 28390 | D17: =C17-C17*$F$2/100 -> 28390 | E17: 37020 | F17: 0.26 | G17: 24.5 | M17: УТ000006760
A18: Дизельная тепловая пушка Verton Air DH-60D (60кВт,950м3/ч.,3,5л/ч,непрям.нагрев,дисплей,манометр,дизель/керосин117х54х69см, d 34mm) | B18: 01.12775.13890 | C18: 67500 | D18: =C18-C18*$F$2/100 -> 67500 | E18: 84620 | F18: 0.44022 | G18: 51 | M18: УТ000013890
A19: Дизельная тепловая пушка Verton Air DH-90 (90кВт,1368м3/ч.,5,8л/ч,прям.нагрев,дисплей,манометр,дизель/керосин 107х57х66см, d 34см) | B19: 01.12775.13445 | C19: 51215 | D19: =C19-C19*$F$2/100 -> 51215 | E19: 64210 | F19: 0.444 | G19: 43 | M19: УТ000013445
A20: Тепловентиляторы электрические VERTON | D20: =C20-C20*$F$2/100 -> 0
A21: Электрический тепловентилятор Verton Air EH-2C ( 220В,25/1000/2000Вт,236 куб.м) | B21: 01.5985.6761 | C21: 1815 | D21: =C21-C21*$F$2/100 -> 1815 | E21: 2270 | F21: 0.00782 | G21: 1.55 | M21: УТ000006761
A22: Электрический тепловентилятор Verton Air EH-3C (220В,25/1500/3000Вт, 330 куб.м.) | B22: 01.5985.6762 | C22: 2650 | D22: =C22-C22*$F$2/100 -> 2650 | E22: 3330 | F22: 0.01584 | G22: 2.4 | M22: УТ000006762
A23: Электрический тепловентилятор Verton Air EH-5C ( 220В,40/3000/5000Вт,670куб.м) силовая вилка,силовая розетка | B23: 01.5985.6763 | C23: 7150 | D23: =C23-C23*$F$2/100 -> 7150 | E23: 8970 | F23: 0.0324 | G23: 4.7 | M23: УТ000006763
A24: Электрический тепловентилятор Verton Air EH-9C (380В,80/6000/9000Вт,1410куб.м.) силовая вилка, силовая розетка | B24: 01.5985.6764 | C24: 10065 | D24: =C24-C24*$F$2/100 -> 10065 | E24: 12630 | F24: 0.06854 | G24: 8.1 | M24: УТ000006764
A25: Газовые пушки VERTON | D25: =C25-C25*$F$2/100 -> 0
A26: Газовая тепловая пушка Verton Air GH-10 (10 кВт,330м3/ч,0,7кг/ч,рег.высоты/подачи газа,пропан/бутан, шланг редуктора 1.5м) | B26: 01.13454.13455 | C26: 6400 | D26: =C26-C26*$F$2/100 -> 6400 | E26: 7710 | F26: 0.03024 | G26: 4.5 | M26: УТ000013455
A27: Газовая тепловая пушка Verton Air GH-18 (18 кВт,400м3/ч,1,1кг/ч,рег.высоты/подачи газа,пропан/бутан, шланг редуктора 1.5м) | B27: 01.13454.13456 | C27: 7445 | D27: =C27-C27*$F$2/100 -> 7445 | E27: 9710 | F27: 0.03 | G27: 5.5 | M27: УТ000013456
A28: Газовая тепловая пушка Verton Air GH-33 (33 кВт,750м3/ч,2,1кг/ч,рег.высоты/подачи газа,пропан/бутан) | B28: 01.13454.13457 | C28: 9790 | D28: =C28-C28*$F$2/100 -> 9790 | E28: 12760 | F28: 0.05 | G28: 7.5 | M28: УТ000013457
A29: Газовая тепловая пушка Verton Air GHB-10 (10 кВт,320м3/ч,0,7кг/ч,,пропан/бутан, газ. шланг 2м) | B29: 01.13454.17912 | C29: 6205 | D29: =C29-C29*$F$2/100 -> 6205 | E29: 8090 | F29: 0.03 | G29: 4.5 | M29: УТ000017912
A30: Зарядные и пуско-зарядные устройства VERTON | D30: =C30-C30*$F$2/100 -> 0
A31: Зарядное устройство VERTON Energy BC- 5 (230/50 В/Гц,мощн.60Вт.,напряж.аккум.6/12 В.,емкость обсл.аккум.1,2-120Ач.,раб.темп.(-20)-(+40) С, LCD) 20шт/уп | B31: 01.12779.17915 | C31: 1620 | D31: =C31-C31*$F$2/100 -> 1620 | E31: 2040 | F31: 0.00165 | G31: 0.5 | M31: УТ000017915
A32: Зарядное устройство VERTON Energy ЗУ- 5 (230/50 В/Гц,мощн.60Вт.,напряж.аккум.6/12 В.,емкость обсл.аккум.1,2-120Ач.,раб.темп.(-20)-(+40) С, LCD) 20шт/уп | B32: 01.5985.5968 | C32: 1460 | D32: =C32-C32*$F$2/100 -> 1460 | E32: 1840 | F32: 0.00255 | G32: 0.5 | M32: УТ000005986
A33: Зарядное устройство VERTON Energy BC-10 (230/50 В/Гц ,мощн. 100Вт,напряж. аккум. 12В,емкость обсл. аккум. 15-100 Ач, зар. ток (пик/норм) 10/6 А) | B33: 01.12779.17916 | C33: 4060 | D33: =C33-C33*$F$2/100 -> 4060 | E33: 5090 | F33: 0.01416 | G33: 4.7 | M33: УТ000017916
A34: Зарядное устройство VERTON Energy BC-12 (230/50 В/Гц, мощн. 80Вт. напряж. аккум. 12/24 В,емкость обсл. аккум.20-150Ач,заряд. ток 12А, раб. темп. (-20) - (+40) С, LCD) 10 шт/уп | B34: 01.12779.17917 | C34: 2650 | D34: =C34-C34*$F$2/100 -> 2650 | E34: 3330 | F34: 0.00329 | G34: 0.6 | M34: УТ000017917
A35: Зарядное устройство VERTON Energy ЗУ-10И (230/50 В/Гц,мощн.100Вт,напряж. аккум.12/24В,емкость обсл. аккум.30-120 А/ч,заряд. ток (пик/норм) 0,5-10А,импульсная) 9 шт/кор. | B35: 01.9670.9905 | C35: 3675 | D35: =C35-C35*$F$2/100 -> 3675 | E35: 4610 | F35: 0.006 | G35: 3.2 | M35: УТ000009905
A36: Зарядное устройство VERTON Energy BC-10Р (230/50 В/Гц, мощн 100Вт, напряж. аккум. 6/12В,емкость обсл. аккум. 6-120 Ач,заряд. ток 10А) 12 шт/кор. | B36: 01.12779.17919 | C36: 3390 | D36: =C36-C36*$F$2/100 -> 3390 | E36: 4250 | F36: 0.00544 | G36: 1.16 | M36: УТ000017919
A37: Зарядное устройство VERTON Energy ЗУ-10Р (230/50 В/Гц, мощн 100Вт, напряж. аккум. 6/12В,емкость обсл. аккум. 6-120 Ач,заряд. ток 10А) 12 шт/кор. | B37: 01.9670.9903 | C37: 2895 | D37: =C37-C37*$F$2/100 -> 2895 | E37: 3630 | F37: 0.00544 | G37: 1.16 | M37: УТ000009903
A38: Зарядное устройство VERTON Energy BC-15 (230/50 В/Гц, мощн. 150Вт, напряж. аккум. 12В,емкость обсл. аккум. 20-120 Ач, заряд. ток (пик/норма) 10/6 А) | B38: 01.12779.17920 | C38: 4250 | D38: =C38-C38*$F$2/100 -> 4250 | E38: 5330 | F38: 0.01416 | G38: 5.9 | M38: УТ000017920
A39: Зарядное устройство VERTON Energy ЗУ-15 (230/50 В/Гц, мощн. 150Вт, напряж. аккум. 12В,емкость обсл. аккум. 20-120 Ач, заряд. ток (пик/норма) 10/6 А) | B39: 01.5985.5988 | C39: 3830 | D39: =C39-C39*$F$2/100 -> 3830 | E39: 4800 | F39: 0.014 | G39: 4.5 | M39: УТ000005988
A40: Зарядное устройство VERTON Energy BC-15A (230/50 В/Гц,мощн.250 Вт,напряж. аккум.12/24В,вых. ток (в реж. 12В) 2/8/15 А, (в реж. 24 В) 2/8 А, емкость обсл. аккум. 2,2-300 А/ч, LCD) 12 шт/кор. | B40: 01.9670.9904 | C40: 4850 | D40: =C40-C40*$F$2/100 -> 4850 | E40: 6080 | F40: 0.00189 | G40: 1.16 | M40: УТ000017921
A41: Зарядное устройство VERTON Energy ЗУ-15A (230/50 В/Гц,мощн.250 Вт,напряж. аккум.12/24В,вых. ток (в реж. 12В) 2/8/15 А, (в реж. 24 В) 2/8 А, емкость обсл. аккум. 2,2-300 А/ч, LCD) 12 шт/кор. | B41: 01.9670.9904 | C41: 4135 | D41: =C41-C41*$F$2/100 -> 4135 | E41: 5190 | F41: 0.00544 | G41: 1.1 | M41: УТ000009904
A42: Зарядное устройство VERTON Energy BC-20 (230/50 В/Гц,мощн. 300Вт, напряж. аккум. 12/24В, емкость обсл. аккум. 20-200 Ач, заряд. ток (пик/норм) 12/8 А) | B42: 01.12779.17922 | C42: 5725 | D42: =C42-C42*$F$2/100 -> 5725 | E42: 7180 | F42: 0.01492 | G42: 7.3 | M42: УТ000017922
A43: Зарядное устройство VERTON Energy ЗУ-30 (230/50 В/Гц,мощн. 700 Вт,напряж. аккум.12/24В,емкость обсл. аккум. 30-300 Ач, заряд. ток (пик/норм) 16/14А) | B43: 01.5985.5990 | C43: 6525 | D43: =C43-C43*$F$2/100 -> 6525 | E43: 8180 | F43: 0.026 | G43: 8.3 | M43: УТ000005990
A44: Зарядное устройство VERTON Energy ЗУ-40 (230/50 В/Гц,мощн. 1000 Вт,напряж. аккум. 12/24В,емкость обсл. аккум. 30-350 Ач, заряд. ток (пик/норм) 24/24А) | B44: 01.5985.5991 | C44: 6655 | D44: =C44-C44*$F$2/100 -> 6655 | E44: 8350 | F44: 0.02722 | G44: 10.7 | M44: УТ000005991
A45: Пусковое устройство VERTON Energy SD-1400 (напр.сети 230В,макс. пуск. ток 900А,компрессор 5 атм, 22 л/мин,емкость 14000мА*ч/44,8Вт*ч,тип аккум. Li-Po,USB1:5В/1A,USB2:5В/2A,кол-во USB:2шт) 20 шт/кор | B45: 01.13825.17933 | C45: 6350 | D45: =C45-C45*$F$2/100 -> 6350 | E45: 7960 | F45: 0.0054 | G45: 1.6 | M45: УТ000017933
A46: Пусковое устройство VERTON Energy ПУ-1400 (напр.сети 230В,макс. пуск. ток 600А,компрессор 10 б,емкость 14000мА*ч/44,8Вт*ч,тип аккум. Li-Po,кол-во USB:2шт)20 шт/кор | B46: 01.5985.8267 | C46: 5715 | D46: =C46-C46*$F$2/100 -> 5715 | E46: 7170 | F46: 0.00346 | G46: 1.6 | M46: УТ000008267
A47: Пуско-зарядное устройство VERTON Energy SC-120 (напр.сети 230/50 В/Гц,напр.АКБ 12/24В,емкость зар. АКБ (мин/макс) 20-400 Ач,макс.ток зар./зап. 40А/120А,WET/AGM, 12В потр.мощн. 1,08/2,16кВт,3 реж, зар,IP20) | B47: 01.12780.17923 | C47: 8730 | D47: =C47-C47*$F$2/100 -> 8730 | E47: 10950 | F47: 0.02723 | G47: 8.05 | M47: УТ000017923
A48: Пуско-зарядное устройство VERTON Energy ПЗУ- 120 (напр.сети 230/50 В/Гц,напр.АКБ 12/24В,емкость зар. АКБ (мин/макс) 20-400 Ач,макс.ток зар./зап. 40А/120А,WET/AGM, 12В потр.мощн. 1,08/2,16кВт,3 реж, зар,IP20) | B48: 01.5985.5992 | C48: 7855 | D48: =C48-C48*$F$2/100 -> 7855 | E48: 9850 | F48: 0.02722 | G48: 8.05 | M48: УТ000005992
A49: Пуско-зарядное устройство VERTON Energy SC-180 (напр.сети 230/50 В/Гц,напр.АКБ 12/24В,емкость зар. АКБ (мин/макс)20-450 Ач,ток зар./зап. 50А/180А,WET/AGM, 12В потр.мощн. 2,1/4,2кВт,3 реж, зар,IP20) | B49: 01.12780.17924 | C49: 9225 | D49: =C49-C49*$F$2/100 -> 9225 | E49: 11580 | F49: 0.02723 | G49: 8.8 | M49: УТ000017924
A50: Пуско-зарядное устройство VERTON Energy SC-240 (напр.сети 230/50 В/Гц,напр.АКБ 12/24В,емкость зар. АКБ (мин/макс) 20-500 Ач,макс.ток зар./зап. 60А/220А,WET/AGM,12В потр.мощн.2,34/4,68кВт,3 реж. зар,IP20) | B50: 01.12780.17926 | C50: 10225 | D50: =C50-C50*$F$2/100 -> 10225 | E50: 12820 | F50: 0.02723 | G50: 9 | M50: УТ000017926
A51: Пуско-зарядное устройство VERTON Energy ПЗУ- 240 (напр.сети 230/50 В/Гц,напр.АКБ 12/24В,емкость зар. АКБ (мин/макс) 20-500 Ач,макс.ток зар./зап. 60А/220А,WET/AGM,12В потр.мощн.2,34/4,68кВт,3 реж. зар,IP20) | B51: 01.5985.7299 | C51: 9205 | D51: =C51-C51*$F$2/100 -> 9205 | E51: 11540 | F51: 0.02722 | G51: 9 | M51: УТ000007299
A52: Пуско-зарядное устройство VERTON Energy SC-320 (напр.сети 230/50 В/Гц,напр.АКБ 12/24В,емкость зар. АКБ (мин/макс)20-500 Ач,макс. ток зарядки/запуска 45А/240А,WET/AGM,12В потр.мощн.1,92/3,84кВт,5 реж. зар,IP20) | B52: 01.12780.17927 | C52: 11125 | D52: =C52-C52*$F$2/100 -> 11125 | E52: 13960 | F52: 0.04205 | G52: 13.1 | M52: УТ000017927
A53: Пуско-зарядное устройство VERTON Energy SC-400 (напр.сети 230/50 В/Гц,напр.АКБ 12/24В,емкость зар. АКБ (мин/макс)20-700 Ач,макс.ток зар/зап. 60A/360А,WET/AGM,12В потр.мощн.2,4/4,8кВт,5 реж. зар,IP20) | B53: 01.12780.17928 | C53: 12140 | D53: =C53-C53*$F$2/100 -> 12140 | E53: 15230 | F53: 0.04205 | G53: 15.35 | M53: УТ000017928
A54: Пуско-зарядное устройство VERTON Energy SC-500 (напр.сети 230/50 В/Гц,напр. АКБ 12/24В,емкость зар. АКБ (мин/макс)20-800 Ач,ток зар/зап. 75A/500А,WET/AGM,12В потр.мощн.3,0/6,0кВт,6 реж. зар,IP20) | B54: 01.12780.17929 | C54: 16380 | D54: =C54-C54*$F$2/100 -> 16380 | E54: 20560 | F54: 0.06882 | G54: 23.85 | M54: УТ000017929
A55: Пуско-зарядное устройство VERTON Energy SC- 600 (напр.сети 230/50 В/Гц,напр.АКБ 12/24В,емкость зар. АКБ (мин/макс) 20-400 Ач,макс.ток зар./зап. 90А/600А,WET/AGM,12В потр.мощн.3,6/7,2кВт,6 реж. зар,IP20) | B55: 01.12780.17931 | C55: 16630 | D55: =C55-C55*$F$2/100 -> 16630 | E55: 20860 | F55: 0.06882 | G55: 23.7 | M55: УТ000017931
A56: Пуско-зарядное устройство VERTON Energy SC- 800 (напр.сети 230/50 В/Гц,напр.АКБ 12/24В,емкость зар. АКБ (мин/макс)20-1300 Ач,макс. ток зар/зап. 100A/800А,WET/AGM,12В потр.мощн.6,0/12 кВт,6 реж. зар,IP20) | B56: 01.12780.17932 | C56: 26805 | D56: =C56-C56*$F$2/100 -> 26805 | E56: 33620 | F56: 0.0948 | G56: 31.5 | M56: УТ000017932
A57: Пуско-зарядное устройство VERTON Energy SC-1000 ДУ (напр.сети 380/50 В/Гц,напр.АКБ 12/24В,емкость зар. АКБ (мин/макс)20-1300 Ач,ток зар/зап. 100A/1000А,WET/AGM,12В потр.мощн.0,6/12кВт,8 реж. зар,IP20) | B57: 01.12780.17930 | C57: 41135 | D57: =C57-C57*$F$2/100 -> 41135 | E57: 51590 | F57: 0.12765 | G57: 54.8 | M57: УТ000017930
A58: Пуско-зарядное устройство VERTON Energy ПЗУ-1000 ДУ (напр.сети 380/50 В/Гц,напр.АКБ 12/24В,емкость зар. АКБ (мин/макс)20-1300 Ач,ток зар/зап. 100A/1000А,WET/AGM,12В потр.мощн.0,6/12кВт,8 реж. зар,IP20) | B58: 01.5985.7300 | C58: 37025 | D58: =C58-C58*$F$2/100 -> 37025 | E58: 46420 | F58: 0.13042 | G58: 54.8 | M58: УТ000007300
A59: Пусковое устройство VERTON Energy ПУ-1800(напр.сети 230В/_12,макс.пуск. ток 1600А,комп.10 б,емкость 18000мА*ч/66,6,Вт*ч,тип аккум. Li-Po, USB1:5В/2A,USB2:5В/2A,9В/2А,12В/2А,кол-во USB:2 шт.)10шт/к | B59: 01.13350.13354 | C59: 8920 | D59: =C59-C59*$F$2/100 -> 8920 | E59: 11190 | F59: 0.00269 | G59: 1.3 | M59: УТ000013354
A60: Пусковые провода VERTON ICE | D60: =C60-C60*$F$2/100 -> 0
A61: Пусковые провода VERTON Snow 250 А (250A, CCA/TPR 2.5 м, Морозостойкие до -40 С.) 10 шт/кор. | B61: 01.9670.9916 | C61: 500 | D61: =C61-C61*$F$2/100 -> 500 | E61: 630 | F61: 0.00335 | G61: 0.6 | M61: УТ000009909
A62: Пусковые провода VERTON Snow 300 А (300 A, CCA/TPR 2.5 м. Морзостойкие до -40 С.) 10 шт/кор. | B62: 01.9670.9917 | C62: 510 | D62: =C62-C62*$F$2/100 -> 510 | E62: 650 | F62: 0.00335 | G62: 0.65 | M62: УТ000009910
A63: Пусковые провода VERTON Snow 300 А (300 A, CCA/TPR 3.5 м, Морозостойкие до -40 С.) 10 шт/кор. | B63: 01.9670.9918 | C63: 620 | D63: =C63-C63*$F$2/100 -> 620 | E63: 780 | F63: 0.00376 | G63: 0.85 | M63: УТ000009912
A64: Пусковые провода VERTON Snow 400 А (400 A, CCA/TPR 3.5 м, Морозостойкие до -40 С.) 10 шт/кор. | B64: 01.9670.9920 | C64: 805 | D64: =C64-C64*$F$2/100 -> 805 | E64: 1010 | F64: 0.00376 | G64: 1.15 | M64: УТ000009913
A65: Пусковые провода VERTON Snow 500 А (500 A, CCA/TPR 3.5 м. Морозостойкие до -40 С.) 10 шт/кор. | B65: 01.9670.9921 | C65: 1510 | D65: =C65-C65*$F$2/100 -> 1510 | E65: 1890 | F65: 0.00471 | G65: 2.05 | M65: УТ000009914
A66: Пусковые провода VERTON Snow 600 А (600 A, CCA/TPR 4 м. Морозостойкие до -40 С.) 5 шт/кор. | B66: 01.9670.9922 | C66: 1835 | D66: =C66-C66*$F$2/100 -> 1835 | E66: 2300 | F66: 0.0018 | G66: 2.55 | M66: УТ000009915
A67: Пусковые провода VERTON Snow 250 CU (250A, CU/TPR 2.5 м, МЕДЬ, Морозостойкие до -40 С.) 10 шт/кор. | B67: 01.9670.9909 | C67: 1355 | D67: =C67-C67*$F$2/100 -> 1355 | E67: 1710 | F67: 0.00335 | G67: 0.8 | M67: УТ000009916
A68: Пусковые провода VERTON Snow 300 CU (300 A, CU/TPR 2.5м, МЕДЬ, Морозостойкие до -40 С.) 10 шт/кор. | B68: 01.9670.9910 | C68: 1355 | D68: =C68-C68*$F$2/100 -> 1355 | E68: 1710 | F68: 0.00335 | G68: 0.85 | M68: УТ000009917
A69: Пусковые провода VERTON Snow 400 CU (400 A, CU/TPR 2.5 м. МЕДЬ,Морозостойкие до -40 С.) 10 шт/кор. | B69: 01.9670.9911 | C69: 1600 | D69: =C69-C69*$F$2/100 -> 1600 | E69: 2010 | F69: 0.00349 | G69: 1.2 | M69: УТ000009919
A70: Пусковые провода VERTON Snow 400 CU (400 A, CU/TPR 3.5 м. МЕДЬ. Морозостойкие до -40 С.) 10 шт/кор. | B70: 01.9670.9913 | C70: 2915 | D70: =C70-C70*$F$2/100 -> 2915 | E70: 3660 | F70: 0.00439 | G70: 1.5 | M70: УТ000009920
A71: Пусковые провода VERTON Snow 500 CU (500 A, CU/TPR 3.5 м. МЕДЬ,Морозостойкие до -40 С.) 10 шт/кор. | B71: 01.9670.9914 | C71: 4780 | D71: =C71-C71*$F$2/100 -> 4780 | E71: 6000 | F71: 0.00471 | G71: 3 | M71: УТ000009921
A72: Пусковые провода VERTON Snow 600 CU (600 A, CU/TPR 4 м, МЕДЬ, Морозостойкие до -40 С.) 5 шт/кор. | B72: 01.9670.9915 | C72: 5390 | D72: =C72-C72*$F$2/100 -> 5390 | E72: 6760 | F72: 0.005 | G72: 3.75 | M72: УТ000009922
A73: Нагрузочные вилки VERTON | D73: =C73-C73*$F$2/100 -> 0
A74: Нагрузочная вилка VERTON Energy NB-100 (напряж аккум. 6/12 В,ток нагрузки для 12В-125А,емкость батарей 30-235 А/ч, стрелочный) 10 шт/кор. | B74: 01.9670.9906 | C74: 1665 | D74: =C74-C74*$F$2/100 -> 1665 | E74: 2090 | F74: 0.00539 | G74: 1.16 | M74: УТ000009906
A75: Нагрузочная вилка VERTON Energy NB-100E (наряж аккум. 8/12 В,ток нагрузки в реж. 12В - 125 Ам,емкость испытуемых батарей 30-235 А/ч, цифровой) 10 шт/кор | B75: 01.9670.9907 | C75: 2445 | D75: =C75-C75*$F$2/100 -> 2445 | E75: 3070 | F75: 0.00539 | G75: 1.1 | M75: УТ000009907
A76: Нагрузочная вилка VERTON Energy NB-125 (напряж. аккум. 12 В,ток нагрузки в реж. 12В - 125 Ам,емкость испытуемых батарей 30-235 А/ч, стрелочный) | B76: 01.9670.9908 | C76: 975 | D76: =C76-C76*$F$2/100 -> 975 | E76: 1220 | F76: 0.0027 | G76: 0.512 | M76: УТ000009908
A77: Снегоуборочные машины VERTON | D77: =C77-C77*$F$2/100 -> 0
A78: Снегоуборочная машина бенз.Verton Ice SB-656 (4,8кВт/6,5л.с,V 196см3,шир/выс56/49см, кол-во передач:6 вперед/2 назад, диам шнека 30см, колеса 13', рычаг упр желобом отдельный, воронка в компл) | B78: 01.9676.17936 | C78: 42975 | D78: =C78-C78*$F$2/100 -> 42975 | E78: 53880 | F78: 0.35712 | G78: 81 | M78: УТ000017936
A79: Подметально-уборочная машина бенз.Verton Ice SW-762 (мощность 4,8кВт/6,5л.с,V двигателя 212 см3,ширина захвата 62см.) | B79: 01.9676.14796 | C79: 61335 | D79: =C79-C79*$F$2/100 -> 61335 | E79: 76890 | F79: 0.40005 | G79: 80 | M79: УТ000014796
A80: Снегоуборочная машина бенз.Verton Ice SB-1161 LTE (8,1кВт/11л.с,V 337см3,шир/выс.61/51см,гусеницы,фара,электрозапуск,кол-во передач:6 вперед/2 назад) | B80: 01.9676.14795 | C80: 97810 | D80: =C80-C80*$F$2/100 -> 97810 | E80: 112820 | F80: 0.48412 | G80: 100 | M80: УТ000014795
A81: Снегоуборочная машина бенз.Verton Ice SB-761 (5,0кВт/7л.с,V 212 см3, шир/выс 62/54,5см,кол-во передач:6 вперед/2 назад, диам шнека 30см, колеса 13', рычаг упр желобом на панели, воронка в компл) | B81: 01.9676.17937 | C81: 44575 | D81: =C81-C81*$F$2/100 -> 44575 | E81: 55880 | F81: 0.35034 | G81: 60 | M81: УТ000017937
A82: Снегоуборочная машина бенз.Verton Ice SB-761MLE (5,0кВт/7л.с,V 212см3,шир/выс 61/54.5см, фара, электрозапуск,кол-во передач:6 вперед/2 назад) | B82: 01.9676.17825 | C82: 51345 | D82: =C82-C82*$F$2/100 -> 51345 | E82: 64380 | F82: 0.35034 | G82: 61 | M82: УТ000017825
A83: Щетка для подметально-уборочной машины бенз.Verton Ice SW-762 | B83: 01.9676.17708 | C83: 18010 | D83: =C83-C83*$F$2/100 -> 18010 | E83: 22590 | F83: 0.04332 | G83: 3.65 | M83: УТ000017708
A84: Снегоуборочная машина бенз. Verton Ice SB-1570LE(мощность 11кВт/15л.с,V двигателя 420см3, ширина/высота захвата 70/54см,кол-во передач:6 вперед/2 назад) | B84: 01.5985.7274 | C84: 108805 | D84: =C84-C84*$F$2/100 -> 108805 | E84: 130950 | F84: 0.78918 | G84: 135 | M84: УТ000017744
A85: Снегоуборочная машина бенз.Verton Ice SB-1570LTE(мощность 11кВт/15л.с,V двигателя 422см3,ширина/высота захвата 70/54см, гусеницы,обогрев рукоятей,дифференциал привода колес,кол-во передач:6 вперед/2 назад) | B85: 01.5985.7275 | C85: 130795 | D85: =C85-C85*$F$2/100 -> 130795 | E85: 157420 | F85: 0.64109 | G85: 129 | M85: УТ000017745
A86: Снегоуборочная машина бенз.Verton Ice SB-1576LE (мощность 11кВт/15л.с,V двигателя 422см3,ширина/высота 76/54см,кол-во передач:6 вперед/2 назад) | B86: 01.5985.9663 | C86: 140765 | D86: =C86-C86*$F$2/100 -> 140765 | E86: 176470 | F86: 0.848 | G86: 141 | M86: УТ000009663
A87: Снегоуборочная машина бенз.Verton Ice SB-1576LТE(мощность 11кВт/15л.с,V двигателя 422см3,ширина/высота захвата 76/54см,гусеницы,обогрев рукоятей,дифференциал привода колес,кол-во передач:6 вперед/2 назад) | B87: 01.5985.9662 | C87: 162600 | D87: =C87-C87*$F$2/100 -> 162600 | E87: 195690 | F87: 0.66798 | G87: 141 | M87: УТ000009662
A88: Генераторы бензиновые VERTON | D88: =C88-C88*$F$2/100 -> 0
A89: Генератор бензиновый VERTON POWER GG2500 (2,0/2,3 кВт, 230В, 7л.с., ручной старт, 12В, бак 12л, счетчик моточасов) | B89: 01.15815.15816 | C89: 14045 | D89: =C89-C89*$F$2/100 -> 14045 | E89: 21950 | F89: 0.13441 | G89: 36 | M89: УТ000015816
A90: Генератор бензиновый VERTON POWER GG3900 (2,8/3,2 кВт, 230В, 7л.с., ручной старт, 12В, бак 12л, счетчик моточасов) | B90: 01.15815.15817 | C90: 19095 | D90: =C90-C90*$F$2/100 -> 19095 | E90: 23870 | F90: 0.13441 | G90: 40 | M90: УТ000015817
A91: Генератор бензиновый VERTON POWER GG6500 (5,0/5,5 кВт, 230В, 13л.с., ручной старт, 12В, бак 22л, счетчик моточасов) | B91: 01.15815.15818 | C91: 38250 | D91: =C91-C91*$F$2/100 -> 38250 | E91: 47820 | F91: 0.21081 | G91: 66.5 | M91: УТ000015818
A92: Генератор бензиновый VERTON POWER GG7500ES (6,0/6,5 кВт, 230В, 17л.с., ручной и электрический старт, медь, 12В,бак 22л, счетчик моточасов) | B92: 01.15815.15819 | C92: 51490 | D92: =C92-C92*$F$2/100 -> 51490 | E92: 64370 | F92: 0.21082 | G92: 80.3 | M92: УТ000015819
A93: Генератор бензиновый VERTON POWER GG8500ES (7,0/7,5 кВт, 230В, 18л.с., ручной и электрический старт, медь, 12В,бак 22л, счетчик моточасов) | B93: 01.15815.15820 | C93: 55590 | D93: =C93-C93*$F$2/100 -> 55590 | E93: 69490 | F93: 0.21082 | G93: 86.5 | M93: УТ000015820
A94: Генератор бензиновый VERTON POWER GG9500ES-3 (8,0/9.0 кВт, 230В/380В, 18л.с., ручной и электрический старт, медь, 12В,бак 22л, счетчик моточасов) | B94: 01.15815.15821 | C94: 67815 | D94: =C94-C94*$F$2/100 -> 67815 | E94: 84770 | F94: 0.21082 | G94: 92.5 | M94: УТ000015821
A95: Мотобуры VERTON | D95: =C95-C95*$F$2/100 -> 0
A96: Бур бензомоторный VERTON МВ-52 (2 такта без шнека,мощность 2.5 л.с,V топ. бака 1250 мл,V двиг. 52 см3,макс. d шнека=300мм.) | B96: 01.5985.7967 | C96: 9475 | D96: =C96-C96*$F$2/100 -> 9475 | E96: 11880 | F96: 0.02901 | G96: 9.5 | M96: УТ000006220
A97: Бур бензомоторный VERTON МВ-56 (2 такта без шнека,мощность 3.5 л.с.,V топ. бака 1250 мл,V двиг. 56см3, макс. d шнека=300мм.) | B97: 01.5985.7971 | C97: 10250 | D97: =C97-C97*$F$2/100 -> 10250 | E97: 12860 | F97: 0.029 | G97: 9.6 | M97: УТ000007971 | O97: 31.01.2025
A98: Бур бензомоторный VERTON МВ-70 (2 такта без шнека с охлажд.,мощность 4 л.с.,V топ. бака 1450мл,V двиг. 70см3,макс. d шнека=350мм.) | B98: 01.5985.6220 | C98: 14280 | D98: =C98-C98*$F$2/100 -> 14280 | E98: 17900 | F98: 0.05882 | G98: 12.15 | M98: УТ000009406 | O98: 31.01.2025
A99: Комплектующие для шнеков VERTON | D99: =C99-C99*$F$2/100 -> 0
A100: Адаптер для шнеков Verton AR-22М/20F | B100: 01.9675.9861 | C100: 430 | D100: =C100-C100*$F$2/100 -> 430 | E100: 580 | F100: 9e-05 | G100: 0.226 | M100: УТ000009861
A101: Адаптер пружинный для бензобура Verton AR-22М/20F (посадочный диаметр тип мама 22мм, посадочный диаметр тип папа 20мм) | B101: 01.12782.18823 | C101: 1590 | D101: =C101-C101*$F$2/100 -> 1590 | E101: 2160 | F101: 0.0025 | G101: 1.96 | M101: УТ000018823
A102: Адаптер для шнеков Verton AR-25М/20F | B102: 01.9675.9862 | C102: 435 | D102: =C102-C102*$F$2/100 -> 435 | E102: 590 | F102: 9e-05 | G102: 0.26 | M102: УТ000009862
A103: Удлинитель шнека Verton ES-L= 1000мм , d пос=20мм | B103: 01.5985.7981 | C103: 595 | D103: =C103-C103*$F$2/100 -> 595 | E103: 810 | F103: 0.0008 | G103: 1.1 | M103: УТ000007981
A104: Удлинитель шнека Verton ES-L= 300мм , d пос=20мм | B104: 01.9675.9857 | C104: 385 | D104: =C104-C104*$F$2/100 -> 385 | E104: 520 | F104: 0.00046 | G104: 0.45 | M104: УТ000009857
A105: Удлинитель шнека Verton ES-L= 500мм , d пос=20мм | B105: 01.5985.7989 | C105: 435 | D105: =C105-C105*$F$2/100 -> 435 | E105: 590 | F105: 0.00031 | G105: 0.65 | M105: УТ000007989
A106: Удлинитель шнека Verton ES-L= 800мм , d пос=20мм | B106: 01.5985.7990 | C106: 505 | D106: =C106-C106*$F$2/100 -> 505 | E106: 690 | F106: 0.00139 | G106: 0.9 | M106: УТ000007990
A107: Шплинт стопорный Verton LP-02 (1уп/2 шт) | B107: 01.9675.9863 | C107: 160 | D107: =C107-C107*$F$2/100 -> 160 | E107: 220 | F107: 4e-05 | G107: 0.685 | M107: УТ000009863
A108: Шнеки/Ножи для грунта VERTON | D108: =C108-C108*$F$2/100 -> 0
A109: Ножи для грунта VERTON GDK-100 (прямые ножи,2 шт/уп, ДШВ 30*30*4 мм, кол-во винтов 4, рез ножа 5*0,8*12, посадочн. отв. 2, расстояние между посадочн. отв. 16 мм) | B109: 01.12782.14705 | C109: 295 | D109: =C109-C109*$F$2/100 -> 295 | E109: 400 | F109: 0.0085 | G109: 0.05 | M109: УТ000014705
A110: Ножи для грунта VERTON GDK-150 (прямые ножи,2 шт/уп, ДШВ 54*30*4 мм, кол-во винтов 4, рез ножа 6*1*12, посадочн. отв. 2, расстояние между посадочн. отв. 30 мм) | B110: 01.12782.14706 | C110: 420 | D110: =C110-C110*$F$2/100 -> 420 | E110: 570 | F110: 0.00252 | G110: 0.085 | M110: УТ000014706 | O110: 18.02.2025
A111: Ножи для грунта VERTON GDK-200 (прямые ножи,2 шт/уп, ДШВ 71*30*4 мм, кол-во винтов 4, рез ножа 6*1*12, посадочн. отв. 2, расстояние между посадочн. отв. 30 мм) | B111: 01.12782.14707 | C111: 580 | D111: =C111-C111*$F$2/100 -> 580 | E111: 790 | F111: 0.0081 | G111: 0.115 | M111: УТ000014707
A112: Ножи для грунта VERTON GDK-250 (прямые ножи,2 шт/уп, ДШВ 90*30*4 мм, кол-во винтов 4, рез ножа 6*1*12, посадочн. отв. 2, расстояние между посадочн. отв. 30 мм) | B112: 01.12782.14708 | C112: 600 | D112: =C112-C112*$F$2/100 -> 600 | E112: 810 | F112: 0.0081 | G112: 0.15 | M112: УТ000014708
A113: Шнек для грунта VERTON GBD- 60 (d пос=20мм, L=800мм, D=60мм) | B113: 01.5985.9404 | C113: 930 | D113: =C113-C113*$F$2/100 -> 930 | E113: 1260 | F113: 0.00392 | G113: 1.35 | M113: УТ000009404
A114: Шнек для грунта VERTON GBD- 80 (d пос=20мм, L=800мм, D=80мм) | B114: 01.5985.9405 | C114: 1040 | D114: =C114-C114*$F$2/100 -> 1040 | E114: 1420 | F114: 0.00648 | G114: 1.6 | M114: УТ000009405
A115: Шнек для грунта VERTON GBD-100 (d пос=20мм, L=800мм, D=100мм) | B115: 01.5985.6672 | C115: 1095 | D115: =C115-C115*$F$2/100 -> 1095 | E115: 1480 | F115: 0.008 | G115: 1.85 | M115: УТ000006672
A116: Шнек для грунта VERTON GBD-100/2 (d пос=20мм, L=800мм, D=100мм) Двухзаходный | B116: 01.9675.10603 | C116: 1770 | D116: =C116-C116*$F$2/100 -> 1770 | E116: 2400 | F116: 0.00805 | G116: 2.755 | M116: УТ000010603
A117: Шнек для грунта VERTON GBD-150 (d пос=20мм, L=800мм D=150мм) | B117: 01.5985.6673 | C117: 1260 | D117: =C117-C117*$F$2/100 -> 1260 | E117: 1720 | F117: 0.01811 | G117: 2.57 | M117: УТ000006673
A118: Шнек для грунта VERTON GBD-150/2 (d пос=20мм, L=800мм, D=150мм) Двухзаходный | B118: 01.9675.10604 | C118: 2395 | D118: =C118-C118*$F$2/100 -> 2395 | E118: 3240 | F118: 0.01811 | G118: 3.95 | M118: УТ000010604
A119: Шнек для грунта VERTON GBD-200 (d пос=20мм, L=800мм, D=200мм) | B119: 01.5985.6674 | C119: 1735 | D119: =C119-C119*$F$2/100 -> 1735 | E119: 2350 | F119: 0.0322 | G119: 3.645 | M119: УТ000006674
A120: Шнек для грунта VERTON GBD-200/2 (d пос=20мм, L=800мм, D=200мм) Двухзаходный | B120: 01.9675.10605 | C120: 3075 | D120: =C120-C120*$F$2/100 -> 3075 | E120: 4160 | F120: 0.0322 | G120: 5.36 | M120: УТ000010605
A121: Шнек для грунта VERTON GBD-250 (d пос=20мм, L=800мм, D=250мм) | B121: 01.5985.6675 | C121: 2005 | D121: =C121-C121*$F$2/100 -> 2005 | E121: 2710 | F121: 0.04832 | G121: 4.145 | M121: УТ000006675
A122: Шнек для грунта VERTON GBD-250/2 (d пос=20мм, L=800мм, D=250мм) Двухзаходный | B122: 01.12782.13234 | C122: 3960 | D122: =C122-C122*$F$2/100 -> 3960 | E122: 5370 | F122: 0.04832 | G122: 6.875 | M122: УТ000013234
A123: Шнек для грунта VERTON GBD-300 (d пос=20мм, L=800мм, D=300мм) | B123: 01.5985.6676 | C123: 2425 | D123: =C123-C123*$F$2/100 -> 2425 | E123: 3280 | F123: 0.08702 | G123: 5.36 | M123: УТ000006676
A124: Шнеки/Ножи для льда VERTON | D124: =C124-C124*$F$2/100 -> 0
A125: Ножи для льда VERTON IDK-150 (прямые ножи) | B125: 01.5985.6225 | C125: 730 | D125: =C125-C125*$F$2/100 -> 730 | E125: 990 | F125: 9e-05 | G125: 0.1 | M125: УТ000006225
A126: Ножи для льда VERTON IDK-200 (прямые ножи) | B126: 01.5985.6226 | C126: 800 | D126: =C126-C126*$F$2/100 -> 800 | E126: 1090 | F126: 9e-05 | G126: 0.17 | M126: УТ000006226
A127: Ножи для льда VERTON IDK-250 (прямые ножи) | B127: 01.5985.6224 | C127: 945 | D127: =C127-C127*$F$2/100 -> 945 | E127: 1280 | F127: 9e-05 | G127: 0.15 | M127: УТ000006224
A128: Ножи для льда VERTON IDK-300 (прямые ножи) | B128: 01.5985.7970 | C128: 1085 | D128: =C128-C128*$F$2/100 -> 1085 | E128: 1470 | F128: 9e-05 | G128: 0.25 | M128: УТ000007970
A129: Шнек для льда VERTON IDB-150 (прямые ножи, d пос=20мм, D=150мм,L-800мм) | B129: 01.5985.6221 | C129: 3945 | D129: =C129-C129*$F$2/100 -> 3945 | E129: 5350 | F129: 0.0196 | G129: 2.15 | M129: УТ000006221
A130: Шнек для льда VERTON IDB-150/1 (прямые ножи, d пос=20мм, D=150мм,L-1000мм) | B130: 01.9675.9698 | C130: 4215 | D130: =C130-C130*$F$2/100 -> 4215 | E130: 5710 | F130: 0.024 | G130: 2.65 | M130: УТ000009698
A131: Шнек для льда VERTON IDB-200 (прямые ножи, d пос=20мм, D=200мм,L-800мм) | B131: 01.5985.6222 | C131: 4405 | D131: =C131-C131*$F$2/100 -> 4405 | E131: 5970 | F131: 0.03528 | G131: 3.45 | M131: УТ000006222
A132: Шнек для льда VERTON IDB-200/1 (прямые ножи, d пос=20мм, D=200мм,L-1000мм) | B132: 01.9675.9699 | C132: 4785 | D132: =C132-C132*$F$2/100 -> 4785 | E132: 6480 | F132: 0.042 | G132: 3.9 | M132: УТ000009699
A133: Шнек для льда VERTON IDB-250 (прямые ножи, d пос=20мм, D=250мм,L-800мм) | B133: 01.5985.6223 | C133: 5740 | D133: =C133-C133*$F$2/100 -> 5740 | E133: 7780 | F133: 0.065 | G133: 3.85 | M133: УТ000006223
A134: Шнек для льда VERTON IDB-250/1 (прямые ножи, d пос=20мм, D=250мм,L-1000мм) | B134: 01.9675.9700 | C134: 6125 | D134: =C134-C134*$F$2/100 -> 6125 | E134: 8300 | F134: 0.065 | G134: 4.35 | M134: УТ000009700
A135: Шнек для льда VERTON IDB-300 (прямые ножи, d пос=20мм, D=300мм,L-800мм) | B135: 01.5985.7969 | C135: 6510 | D135: =C135-C135*$F$2/100 -> 6510 | E135: 8820 | F135: 0.07688 | G135: 6.4 | M135: УТ000007969
A136: Шнек для льда VERTON IDB-300/1 (прямые ножи, d пос=20мм, D=300мм,L-1000мм) | B136: 01.9675.9701 | C136: 6890 | D136: =C136-C136*$F$2/100 -> 6890 | E136: 9330 | F136: 0.093 | G136: 6.45 | M136: УТ000009701
A137: Бензорезы VERTON | D137: =C137-C137*$F$2/100 -> 0
A138: Бензорез VERTON PCU 740-14 (3,9кВт/5,3л.с.,350 мм/14", глуб.рез.125 мм,max об.мин.9300) | B138: 01.18695.18696 | C138: 55065 | D138: =C138-C138*$F$2/100 -> 55065 | E138: 69040 | F138: 0.08033 | G138: 14.7 | M138: УТ000018696
A139: Бензорез VERTON PCU 980-16 (5кВт/6,8л.с.,400 мм/16", глуб.рез.150мм,max об.мин.9300) | B139: 01.18695.18697 | C139: 59310 | D139: =C139-C139*$F$2/100 -> 59310 | E139: 74360 | F139: 0.09547 | G139: 16.4 | M139: УТ000018697
A140: Масла и Смазки VERTON | D140: =C140-C140*$F$2/100 -> 0
A141: Масло Verton Premium моторное п/синт. с дозатором для 2-х тактных двигателей 0.946л.(упак. 1/9 шт.) | B141: 01.12543.12548 | C141: 315 | D141: =C141-C141*$F$2/100 -> 315 | E141: 440 | F141: 0.00227 | G141: 0.95 | M141: УТ000012548
A142: Масло Verton для смазки пильных цепей и шин. 0.946л(упак. 1/12 шт.) | B142: 01.12543.12551 | C142: 230 | D142: =C142-C142*$F$2/100 -> 230 | E142: 310 | F142: 0.00165 | G142: 0.95 | M142: УТ000012551
A143: Масло Verton Компрессорное VG-100 VBL/VCL/VDL (-5°С+45°) 0.946л.(упак. 1/12 шт.) | B143: 01.12543.12546 | C143: 230 | D143: =C143-C143*$F$2/100 -> 230 | E143: 310 | F143: 0.00165 | G143: 0.95 | M143: УТ000012546
A144: Масло Verton минеральное моторное для 2-х тактных двигателей GARDEN ECO 0.1л.(упак. 1/24 шт.) | B144: 01.13827.16782 | C144: 60 | D144: =C144-C144*$F$2/100 -> 60 | E144: 80 | F144: 0.00027 | G144: 0.1125 | M144: УТ000016782
A145: Масло Verton минеральное моторное для 2-х тактных двигателей GARDEN ECO 0.946л.(упак. 1/12 шт.) | B145: 01.12543.12544 | C145: 230 | D145: =C145-C145*$F$2/100 -> 230 | E145: 310 | F145: 0.00165 | G145: 0.95 | M145: УТ000012544
A146: Масло Verton минеральное моторное для 2-х тактных двигателей с дозатором 0.946л.(упак. 1/9 шт.) | B146: 01.12543.12552 | C146: 310 | D146: =C146-C146*$F$2/100 -> 310 | E146: 420 | F146: 0.00227 | G146: 0.95 | M146: УТ000012552
A147: Масло минеральное моторное SAE-30 (0°С +40°) для 4-х тактных двигателей Verton 1л.(упак. 1/12 шт.) | B147: 01.12543.12547 | C147: 250 | D147: =C147-C147*$F$2/100 -> 250 | E147: 340 | F147: 0.00165 | G147: 0.95 | M147: УТ000012547
A148: Масло моторное п/синт.(-25°С +35С°) 5W30 для 4-х тактных двигателей Verton 0.946л.(упак. 1/12 шт.) | B148: 01.12543.12545 | C148: 255 | D148: =C148-C148*$F$2/100 -> 255 | E148: 350 | F148: 0.00165 | G148: 0.95 | M148: УТ000012545
A149: Масло полусинтетическое моторное для 2-х тактных двигателей Verton 0.946л.(упак. 1/12 шт.) | B149: 01.12543.12550 | C149: 240 | D149: =C149-C149*$F$2/100 -> 240 | E149: 320 | F149: 0.00165 | G149: 0.95 | M149: УТ000012550
A150: Масло трансмиссионное SAE 80W90 (до -30°С) Verton Transmission 0,946л.(упак. 1/12 шт.) | B150: 01.12543.12549 | C150: 240 | D150: =C150-C150*$F$2/100 -> 240 | E150: 320 | F150: 0.00165 | G150: 0.95 | M150: УТ000012549
A151: Пилы бензиновые VERTON | D151: =C151-C151*$F$2/100 -> 0
A152: Пила бензиновая Verton Garden Pro CS-2512 (мощн.25 см.куб.,V двиг.1,3 л.с, дл.шины 30см/12", шаг цепи 3/8,ширина паза1,3,кол-во звеньев 45) | B152: 01.13537.13538 | C152: 9505 | D152: =C152-C152*$F$2/100 -> 9505 | E152: 11920 | F152: 0.02031 | G152: 3.5 | M152: УТ000013538 | O152: 14.02.2025
A153: Пила бензиновая Verton Garden Pro CS-4116 (мощн.41 см.куб.,V двиг. 2,5 л.с, дл.шины 40см/16", шаг цепи 3/8, ширина паза1,3, кол-во звеньев 57) | B153: 01.13537.13539 | C153: 9280 | D153: =C153-C153*$F$2/100 -> 9280 | E153: 11630 | F153: 0.0313 | G153: 5 | M153: УТ000013539 | O153: 14.02.2025
A154: Пила бензиновая Verton Garden Pro CS-4518 (мощн.45 см.куб.,V двиг.2,9 л.с, дл.шины 45см/18", шаг цепи 0,325,ширина паза 1,5,кол-во звеньев 72) | B154: 01.13537.13540 | C154: 9715 | D154: =C154-C154*$F$2/100 -> 9715 | E154: 12180 | F154: 0.03758 | G154: 6 | M154: УТ000013540 | O154: 14.02.2025
A155: Пила бензиновая Verton Garden Pro CS-5420 (мощн.54 см.куб.,V двиг.3,4 л.с,дл.шины 50см/20", шаг цепи 0,325,ширина паза1,5,кол-во звеньев76) | B155: 01.13537.13541 | C155: 7790 | D155: =C155-C155*$F$2/100 -> 7790 | E155: 9760 | F155: 0.03758 | G155: 6 | M155: УТ000013541 | O155: 14.02.2025
A156: Пила бензиновая Verton Garden Pro CS-5820 (мощн.58 см3,V двиг.4,5 л.с,длина шины 50см/20",шаг цепи 0,325, ширина паза 1,5,кол-во звеньев 76) | B156: 01.13537.14138 | C156: 10155 | D156: =C156-C156*$F$2/100 -> 10155 | E156: 12740 | F156: 0.03948 | G156: 6 | M156: УТ000014138 | O156: 14.02.2025
A157: Пилы аккумуляторные VERTON | D157: =C157-C157*$F$2/100 -> 0
A158: Пила аккумуляторная бесщеточная цепная Verton Garden Green Pro BCS-2012 (Li-Ion,20В,2-5А*ч,600Вт,аккум.бат-я 1шт(20V/4.0Ah),зар.устр-во, шина 12"/30см, 1,3, цепь 12" 3/8 1,3 45зв. ) | B158: 01.14201.17009 | C158: 10275 | D158: =C158-C158*$F$2/100 -> 10275 | E158: 12890 | F158: 0.02329 | G158: 3.6 | M158: УТ000017009
A159: Комплектующие к цепным пилам | D159: =C159-C159*$F$2/100 -> 0
A160: Бухта Verton HC 8-0,325-1,3-1840 (упаковка+рем.комплект) | B160: 01.14803.14841 | C160: 13170 | D160: =C160-C160*$F$2/100 -> 13170 | E160: 18490 | F160: 0.01065 | G160: 8.05 | M160: УТ000014841
A161: Бухта Verton HC 8-0,325-1,5-1840 (упаковка+рем.комплект) | B161: 01.14803.14839 | C161: 13170 | D161: =C161-C161*$F$2/100 -> 13170 | E161: 18490 | F161: 0.01065 | G161: 8.45 | M161: УТ000014839
A162: Бухта Verton HC 9-3/8-1,1-1640 (упаковка+рем.комплект) | B162: 01.14803.14840 | C162: 10690 | D162: =C162-C162*$F$2/100 -> 10690 | E162: 15010 | F162: 0.01065 | G162: 5.95 | M162: УТ000014840
A163: Бухта Verton HC 9-3/8-1,3-1640 (упаковка+рем.комплект) | B163: 01.14803.14842 | C163: 10690 | D163: =C163-C163*$F$2/100 -> 10690 | E163: 15010 | F163: 0.01065 | G163: 6.15 | M163: УТ000014842
A164: Бухта Verton HC 9-3/8-1,5-1640 (упаковка+рем.комплект) | B164: 01.14803.14843 | C164: 14205 | D164: =C164-C164*$F$2/100 -> 14205 | E164: 19950 | F164: 0.01065 | G164: 9.15 | M164: УТ000014843
A165: Бухта Verton HC-PROF-9-3/8-1,3-1640 (упаковка+рем.комплект) | B165: 01.14803.15805 | C165: 10465 | D165: =C165-C165*$F$2/100 -> 10465 | E165: 14690 | F165: 0.01382 | G165: 6.6 | M165: УТ000015805
A166: Рем. комплект цепи Verton RHC 8-1,3 (0,325") 30шт. | B166: 01.14803.14954 | C166: 210 | D166: =C166-C166*$F$2/100 -> 210 | E166: 300 | F166: 3e-05 | G166: 0.05 | M166: УТ000014954
A167: Рем. комплект цепи Verton RHC 8-1,5 (0,325") 30шт. | B167: 01.14803.14955 | C167: 210 | D167: =C167-C167*$F$2/100 -> 210 | E167: 300 | F167: 3e-05 | G167: 0.05 | M167: УТ000014955
A168: Рем. комплект цепи Verton RHC 9-1,3 (3/8") 30шт. | B168: 01.14803.14956 | C168: 210 | D168: =C168-C168*$F$2/100 -> 210 | E168: 300 | F168: 3e-05 | G168: 0.05 | M168: УТ000014956
A169: Рем. комплект цепи Verton RHC 9-1,5 (3/8") 30шт. | B169: 01.14803.14957 | C169: 210 | D169: =C169-C169*$F$2/100 -> 210 | E169: 300 | F169: 4e-05 | G169: 0.1 | M169: УТ000014957
A170: Цепь Verton CSC 8-0,325-1,3-72 | B170: 01.14803.16126 | C170: 560 | D170: =C170-C170*$F$2/100 -> 560 | E170: 730 | F170: 0.0005 | G170: 0.3 | M170: УТ000016126
A171: Цепь Verton CSC 8-0,325-1,3-76 | B171: 01.14803.21275 | C171: 590 | D171: =C171-C171*$F$2/100 -> 590 | E171: 770 | M171: УТ000021275
A172: Цепь Verton CSC 8-0,325-1,5-64 | B172: 01.14803.16943 | C172: 495 | D172: =C172-C172*$F$2/100 -> 495 | E172: 650 | F172: 0.0005 | G172: 0.3 | M172: УТ000016943
A173: Цепь Verton CSC 8-0,325-1,5-64 (блистер) | B173: 01.14803.14818 | C173: 500 | D173: =C173-C173*$F$2/100 -> 500 | E173: 710 | F173: 0.00031 | G173: 0.25 | M173: УТ000014818
A174: Цепь Verton CSC 8-0,325-1,5-68 | B174: 01.14803.16695 | C174: 525 | D174: =C174-C174*$F$2/100 -> 525 | E174: 690 | F174: 0.0005 | G174: 0.3 | M174: УТ000016695
A175: Цепь Verton CSC 8-0,325-1,5-72 | B175: 01.14803.16766 | C175: 584 | D175: =C175-C175*$F$2/100 -> 584 | E175: 730 | F175: 0.0005 | G175: 0.3 | M175: УТ000016766
A176: Цепь Verton CSC 8-0,325-1,5-72 (блистер) | B176: 01.14803.14821 | C176: 565 | D176: =C176-C176*$F$2/100 -> 565 | E176: 790 | F176: 0.00031 | G176: 0.3 | M176: УТ000014821
A177: Цепь Verton CSC 8-0,325-1,5-76 | B177: 01.14803.16752 | C177: 617 | D177: =C177-C177*$F$2/100 -> 617 | E177: 770 | F177: 0.0005 | G177: 0.3 | M177: УТ000016752
A178: Цепь Verton CSC 8-0,325-1,5-76 (блистер) | B178: 01.14803.14822 | C178: 590 | D178: =C178-C178*$F$2/100 -> 590 | E178: 830 | F178: 0.00031 | G178: 0.3 | M178: УТ000014822
A179: Цепь Verton CSC 9-3/8-1,1-52 | B179: 01.14803.16129 | C179: 370 | D179: =C179-C179*$F$2/100 -> 370 | E179: 490 | F179: 0.0005 | G179: 0.3 | M179: УТ000016129
A180: Цепь Verton CSC 9-3/8-1,1-55 | B180: 01.14803.17113 | C180: 390 | D180: =C180-C180*$F$2/100 -> 390 | E180: 510 | F180: 0.0005 | G180: 0.3 | M180: УТ000017113
A181: Цепь Verton CSC 9-3/8-1,3-45 (блистер) | B181: 01.14803.14823 | C181: 325 | D181: =C181-C181*$F$2/100 -> 325 | E181: 460 | F181: 0.00031 | G181: 0.15 | M181: УТ000014823
A182: Цепь Verton CSC 9-3/8-1,3-50 | B182: 01.14803.16869 | C182: 370 | D182: =C182-C182*$F$2/100 -> 370 | E182: 470 | F182: 0.0005 | G182: 0.3 | M182: УТ000016869
A183: Цепь Verton CSC 9-3/8-1,3-50 () | B183: 01.14803.16139 | C183: 355 | D183: =C183-C183*$F$2/100 -> 355 | E183: 470 | F183: 0.0005 | G183: 0.3 | M183: УТ000016139
A184: Цепь Verton CSC 9-3/8-1,3-50 (блистер) | B184: 01.14803.14824 | C184: 360 | D184: =C184-C184*$F$2/100 -> 360 | E184: 510 | F184: 0.00031 | G184: 0.15 | M184: УТ000014824
A185: Цепь Verton CSC 9-3/8-1,3-52 | B185: 01.14803.17707 | C185: 370 | D185: =C185-C185*$F$2/100 -> 370 | E185: 490 | F185: 0.0005 | G185: 0.3 | M185: УТ000017707
A186: Цепь Verton CSC 9-3/8-1,3-52 (блистер) | B186: 01.14803.14825 | C186: 375 | D186: =C186-C186*$F$2/100 -> 375 | E186: 530 | F186: 0.00031 | G186: 0.2 | M186: УТ000014825
A187: Цепь Verton CSC 9-3/8-1,3-55 | B187: 01.14803.16742 | C187: 390 | D187: =C187-C187*$F$2/100 -> 390 | E187: 510 | F187: 0.0005 | G187: 0.3 | M187: УТ000016742
A188: Цепь Verton CSC 9-3/8-1,3-55 (блистер) | B188: 01.14803.14828 | C188: 400 | D188: =C188-C188*$F$2/100 -> 400 | E188: 570 | F188: 0.00031 | G188: 0.2 | M188: УТ000014828
A189: Цепь Verton CSC 9-3/8-1,3-56 | B189: 01.14803.17075 | C189: 395 | D189: =C189-C189*$F$2/100 -> 395 | E189: 520 | F189: 0.0005 | G189: 0.2 | M189: УТ000017075
A190: Цепь Verton CSC 9-3/8-1,3-56 (блистер) | B190: 01.14803.14834 | C190: 405 | D190: =C190-C190*$F$2/100 -> 405 | E190: 570 | F190: 0.00031 | G190: 0.2 | M190: УТ000014834
A191: Цепь Verton CSC 9-3/8-1,3-57 | B191: 01.14803.17101 | C191: 405 | D191: =C191-C191*$F$2/100 -> 405 | E191: 530 | F191: 0.0005 | G191: 0.25 | M191: УТ000017101
A192: Цепь Verton CSC 9-3/8-1,3-57 (блистер) | B192: 01.14803.14835 | C192: 410 | D192: =C192-C192*$F$2/100 -> 410 | E192: 580 | F192: 0.00031 | G192: 0.2 | M192: УТ000014835
A193: Цепь Verton CSC 9-3/8-1,3-59 | B193: 01.14803.16127 | C193: 420 | D193: =C193-C193*$F$2/100 -> 420 | E193: 550 | M193: УТ000016127
A194: Цепь Verton CSC 9-3/8-1,3-62 | B194: 01.14803.17178 | C194: 440 | D194: =C194-C194*$F$2/100 -> 440 | E194: 580 | F194: 0.0005 | G194: 0.25 | M194: УТ000017178
A195: Цепь Verton CSC 9-3/8-1,3-62 (блистер) | B195: 01.14803.14837 | C195: 450 | D195: =C195-C195*$F$2/100 -> 450 | E195: 630 | F195: 0.00031 | G195: 0.2 | M195: УТ000014837
A196: Цепь Verton CSC 9-3/8-1,5-50 | B196: 01.14803.17315 | C196: 470 | D196: =C196-C196*$F$2/100 -> 470 | E196: 620 | F196: 0.0005 | G196: 0.3 | M196: УТ000017315
A197: Цепь Verton CSC 9-3/8-1,5-52 | B197: 01.14803.17316 | C197: 490 | D197: =C197-C197*$F$2/100 -> 490 | E197: 640 | F197: 0.0005 | G197: 0.3 | M197: УТ000017316
A198: Цепь Verton CSC 9-3/8-1,5-55 | B198: 01.14803.16928 | C198: 515 | D198: =C198-C198*$F$2/100 -> 515 | E198: 670 | F198: 0.0005 | G198: 0.3 | M198: УТ000016928
A199: Цепь Verton CSC 9-3/8-1,5-68 | B199: 01.14803.16123 | C199: 668 | D199: =C199-C199*$F$2/100 -> 668 | E199: 840 | F199: 0.0005 | G199: 0.3 | M199: УТ000016123
A200: Цепь Verton CSC-PROF-9-3/8-1,3-45 | B200: 01.14803.22091 | C200: 300 | D200: =C200-C200*$F$2/100 -> 300 | E200: 390 | M200: УТ000022091
A201: Цепь Verton CSC-PROF-9-3/8-1,3-45 (блистер) | B201: 01.14803.15798 | C201: 570 | D201: =C201-C201*$F$2/100 -> 570 | E201: 800 | M201: УТ000015798
... 223 more rows

Sheet Запчасти
E1: Пропишите вашу скидку | H1: Итого обьем, м3 | I1: Итого вес, кг | J1: Итого количество, шт
E2: Ваша скидка | F2: 0
D4: Итого | E4: Сумма вашей заявки | F4: =SUMPRODUCT($D$7:$D$3750,$H$7:$H$3750) -> 0
A5: ИТОГО | H5: =SUMPRODUCT(H8:H3755,F8:F3755) -> 0 | I5: =SUMPRODUCT(H8:H3755,G8:G3755) -> 0 | J5: =SUM(H8:H3755) -> 0 | K5: В наличии | L5: В пути | M5: Нет в наличии
A6: Наименование товаров | B6: Артикул | C6: Цена(опт) | D6: Ваша цена | E6: Цена МРЦ | F6: Объем, м3 | G6: Вес, кг | H6: Заявка | I6: Остаток Хабаровск | J6: Ссылка
A7: ЗАПАСНЫЕ ЧАСТИ
A8: Пусковые и зарядные устройства | D8: =C8-C8*$F$2/100 -> 0
A9: Амперметр VERTON ПЗУ-1000 | B9: 01.7957.8092 | C9: 390 | D9: =C9-C9*$F$2/100 -> 390 | E9: 550 | F9: 0.00019 | G9: 0.05 | J9: УТ000008092
A10: Амперметр ПЗУ-320/400/500/600 (60А) | B10: 01.6185.6198 | C10: 450 | D10: =C10-C10*$F$2/100 -> 450 | E10: 630 | F10: 0.00019 | G10: 0.05 | J10: УТ000006198
A11: Аккумулятор для ПУ-1400 | B11: 01.10989.10990 | C11: 4070 | D11: =C11-C11*$F$2/100 -> 4070 | E11: 5700 | J11: УТ000010990
A12: Амперметр NB-125 | B12: 01.8881.12525 | C12: 145 | D12: =C12-C12*$F$2/100 -> 145 | E12: 150 | F12: 9e-05 | G12: 0.02 | J12: УТ000012525
A13: Амперметр VERTON ЗУ-10 Р | B13: 01.8881.10310 | C13: 150 | D13: =C13-C13*$F$2/100 -> 150 | E13: 210 | F13: 9e-05 | G13: 0.02 | J13: УТ000010310
A14: Амперметр VERTON ЗУ-10/15/20 (85С17-30А) | B14: 01.7957.8101 | C14: 275 | D14: =C14-C14*$F$2/100 -> 275 | E14: 390 | F14: 0.00027 | G14: 0.05 | J14: УТ000008101
A15: Амперметр VERTON ЗУ-10N | B15: 01.8881.10337 | C15: 150 | D15: =C15-C15*$F$2/100 -> 150 | E15: 210 | F15: 9e-05 | G15: 0.02 | J15: УТ000010337
A16: Амперметр VERTON ЗУ-30/40 (85С17-50А) | B16: 01.7957.8063 | C16: 300 | D16: =C16-C16*$F$2/100 -> 300 | E16: 420 | F16: 0.00027 | G16: 0.05 | J16: УТ000008063
A17: Амперметр VERTON ПЗУ-120/180 (85С17-60А) | B17: 01.7957.8058 | C17: 410 | D17: =C17-C17*$F$2/100 -> 410 | E17: 580 | F17: 0.00025 | G17: 0.05 | J17: УТ000008058
A18: Амперметр VERTON ПЗУ-320/500/600/800 (85С1-120А МАХ-200А) | B18: 01.7957.8084 | C18: 325 | D18: =C18-C18*$F$2/100 -> 325 | E18: 460 | F18: 0.00019 | G18: 0.05 | J18: УТ000008084
A19: Болт M6*45 | B19: 01.10529 | C19: 10 | D19: =C19-C19*$F$2/100 -> 10 | G19: 0.001 | J19: УТ000010529
A20: Вентилятор VERTON ЗУ-10 Р | B20: 01.8881.10308 | C20: 200 | D20: =C20-C20*$F$2/100 -> 200 | E20: 280 | F20: 0.108 | G20: 0.02 | J20: УТ000010308
A21: Вентилятор VERTON ЗУ-10N | B21: 01.8881.10335 | C21: 200 | D21: =C21-C21*$F$2/100 -> 200 | E21: 280 | F21: 1e-05 | G21: 0.02 | J21: УТ000010335
A22: Вентилятор VERTON ЗУ-15 А | B22: 01.8881.10324 | C22: 200 | D22: =C22-C22*$F$2/100 -> 200 | E22: 280 | F22: 2e-05 | G22: 0.02 | J22: УТ000010324
A23: Выключатель (KCD-25) ЗУ-10 | B23: 01.7957.8051 | C23: 75 | D23: =C23-C23*$F$2/100 -> 75 | E23: 110 | F23: 3e-05 | G23: 0.01 | J23: УТ000008051
A24: Выключатель VERTON ЗУ-10/15/20/30/40, ПЗУ-120/180/320/400 | B24: 01.6185.6207 | C24: 75 | D24: =C24-C24*$F$2/100 -> 75 | E24: 110 | F24: 0.095 | G24: 0.05 | J24: УТ000006207
A25: Выключатель ПЗУ-1000 | B25: 01.8881.18303 | D25: =C25-C25*$F$2/100 -> 0 | J25: УТ000018303
A26: Держатель предохранителя VERTON ЗУ-10N | B26: 01.8881.10343 | C26: 65 | D26: =C26-C26*$F$2/100 -> 65 | E26: 100 | F26: 0.055 | G26: 0.01 | J26: УТ000010343
A27: Дисплей с печатной платой VERTON ЗУ-15 А | B27: 01.8881.10321 | C27: 865 | D27: =C27-C27*$F$2/100 -> 865 | E27: 1220 | F27: 3e-05 | G27: 0.4 | J27: УТ000010321
A28: ЖК-экран в сборе с подсветкой VERTON ЗУ-5 | B28: 01.7957.8045 | C28: 255 | D28: =C28-C28*$F$2/100 -> 255 | E28: 360 | F28: 0.082 | G28: 0.001 | J28: УТ000008045
A29: Зажим и шнур NB-125 | B29: 01.8881.12528 | C29: 200 | D29: =C29-C29*$F$2/100 -> 200 | E29: 300 | F29: 4e-05 | G29: 0.05 | J29: УТ000012528
A30: Зажим красный (Крокодил) VERTON ПЗУ-800/1000 | B30: 01.8881.18585 | D30: =C30-C30*$F$2/100 -> 0 | J30: УТ000018585
A31: Зажим красный 100А (Крокодил) VERTON ПЗУ-120 | B31: 01.7957.8068 | C31: 365 | D31: =C31-C31*$F$2/100 -> 365 | E31: 520 | F31: 0.00012 | G31: 0.05 | J31: УТ000008068
A32: Зажим красный 10А (Крокодил) VERTON ЗУ-10/40 | B32: 01.7957.8047 | C32: 125 | D32: =C32-C32*$F$2/100 -> 125 | E32: 180 | F32: 4e-05 | G32: 0.02 | J32: УТ000008047
A33: Зажим красный с кабелем 100А (Крокодил) VERTON ПЗУ-120 | B33: 01.8881.17119 | C33: 365 | D33: =C33-C33*$F$2/100 -> 365 | E33: 520 | J33: УТ000017119
A34: Зажим черный 100А (Крокодил) VERTON ПЗУ-120 | B34: 01.7957.8067 | C34: 370 | D34: =C34-C34*$F$2/100 -> 370 | E34: 520 | F34: 9e-05 | G34: 0.05 | J34: УТ000008067
A35: Зажим черный 10А (Крокодил) VERTON ЗУ-10/40 | B35: 01.7957.8046 | C35: 125 | D35: =C35-C35*$F$2/100 -> 125 | E35: 180 | F35: 4e-05 | G35: 0.02 | J35: УТ000008046
A36: Зажим черный с кабелем 100А (Крокодил) VERTON ПЗУ-120 | B36: 01.8881.17118 | C36: 370 | D36: =C36-C36*$F$2/100 -> 370 | E36: 520 | J36: УТ000017118
A37: Зажим, крококдил с проводом VERTON (комплект +/-) NB-100/100E | B37: 01.8881.10360 | C37: 200 | D37: =C37-C37*$F$2/100 -> 200 | E37: 280 | F37: 0.00072 | G37: 0.25 | J37: УТ000010360
A38: Зарядное устройство VERTON ПУ-1400 | B38: 01.8881.14540 | C38: 205 | D38: =C38-C38*$F$2/100 -> 205 | E38: 300 | J38: УТ000014540
A39: Зарядное устройство VERTON ПУ-1400 | B39: 01.15764.16670 | C39: 660 | D39: =C39-C39*$F$2/100 -> 660 | E39: 930 | J39: УТ000016670
A40: Изолятор клеммы VERTON ПЗУ-30/40 (2шт/комп.) | B40: 01.9080.10588 | C40: 5 | D40: =C40-C40*$F$2/100 -> 5 | E40: 10 | F40: 0.025 | G40: 0.001 | J40: УТ000010588
A41: Индикатор с цифровой платой NB-100E | B41: 01.2367.10933 | C41: 200 | D41: =C41-C41*$F$2/100 -> 200 | E41: 280 | F41: 0.16 | G41: 0.05 | J41: УТ000010933
A42: Индикатор с цифровой платой VERTON NB-100 | B42: 01.8881.10358 | C42: 200 | D42: =C42-C42*$F$2/100 -> 200 | E42: 280 | F42: 9e-05 | G42: 0.05 | J42: УТ000010358
A43: Индикаторная лампа ПЗУ VERTON 500\600\800 | B43: 01.7957.8079 | C43: 35 | D43: =C43-C43*$F$2/100 -> 35 | E43: 50 | F43: 0.034 | G43: 0.001 | J43: УТ000008079
A44: Кабель дисплея VERTON ЗУ-15 А | B44: 01.8881.10325 | C44: 150 | D44: =C44-C44*$F$2/100 -> 150 | E44: 210 | F44: 0.022 | G44: 0.003 | J44: УТ000010325
A45: Кабель зарядки Type-C | B45: 01.8881.15769 | D45: =C45-C45*$F$2/100 -> 0 | J45: УТ000015769
A46: Кабель зарядки Type-C, USB, Apple | B46: 01.8881.15770 | D46: =C46-C46*$F$2/100 -> 0 | J46: УТ000015770
A47: Кабель зарядки Type-C, USB, Apple | B47: 01.15764.16672 | C47: 160 | D47: =C47-C47*$F$2/100 -> 160 | E47: 230 | J47: УТ000016672
A48: Кабель ПЗУ-120/180 | B48: 01.9084.10068 | C48: 215 | D48: =C48-C48*$F$2/100 -> 215 | E48: 310 | F48: 0.00012 | G48: 0.05 | J48: УТ000010068
A49: Кабель питания с вилкой VERTON | B49: 01.9084.10069 | C49: 215 | D49: =C49-C49*$F$2/100 -> 215 | E49: 310 | F49: 0.00062 | G49: 0.35 | J49: УТ000011317
A50: Кабель питания с вилкой VERTON 16 А ПЗУ-800 (2.4 м.) | B50: 01.8881.10552 | C50: 160 | D50: =C50-C50*$F$2/100 -> 160 | E50: 230 | F50: 0.0005 | G50: 0.3 | J50: УТ000010552
A51: Кабель питания с вилкой VERTON ЗУ-10 Р | B51: 01.8881.10306 | C51: 90 | D51: =C51-C51*$F$2/100 -> 90 | E51: 130 | F51: 0.00017 | G51: 0.08 | J51: УТ000011318
A52: Кабель питания с вилкой VERTON ЗУ-10И | B52: 01.8881.10333 | C52: 90 | D52: =C52-C52*$F$2/100 -> 90 | E52: 130 | F52: 0.00017 | G52: 0.08 | J52: УТ000011319
A53: Кабель питания с вилкой VERTON ЗУ-15 А | B53: 01.8881.10322 | C53: 90 | D53: =C53-C53*$F$2/100 -> 90 | E53: 130 | F53: 0.00017 | G53: 0.08 | J53: УТ000011320
A54: Кабель силовой (+) без зажима ПЗУ-800/1000 | B54: 01.8881.18586 | D54: =C54-C54*$F$2/100 -> 0 | J54: УТ000018586
A55: Клема предохранителя VERTON ПЗУ-120/240 | B55: 01.8881.15855 | C55: 60 | D55: =C55-C55*$F$2/100 -> 60 | E55: 90 | J55: УТ000015855
A56: Клема предохранителя VERTON ПЗУ-500/600 | B56: 01.8881.18315 | D56: =C56-C56*$F$2/100 -> 0 | J56: УТ000018315
A57: Клемма-разъём винтовой ПЗУ 120/180 | B57: 01.9080.7279 | C57: 500 | D57: =C57-C57*$F$2/100 -> 500 | E57: 700 | F57: 6e-05 | G57: 0.05 | J57: УТ000007279
A58: Клемная колодка предохранителя в сборе VERTON ПЗУ-320/400 | B58: 01.8881.15854 | C58: 60 | D58: =C58-C58*$F$2/100 -> 60 | E58: 90 | J58: УТ000015854
A59: Кнопка, клавиша красная VERTON ЗУ-10 N | B59: 01.8881.10338 | C59: 15 | D59: =C59-C59*$F$2/100 -> 15 | E59: 30 | F59: 0.019 | G59: 0.008 | J59: УТ000010338
A60: Кнопки переключения VERTON NB-100/100E | B60: 01.8881.10359 | C60: 65 | D60: =C60-C60*$F$2/100 -> 65 | E60: 100 | F60: 0.019 | G60: 0.008 | J60: УТ000010359
A61: Колесо VERTON ПЗУ-1000 | B61: 01.8881.18306 | D61: =C61-C61*$F$2/100 -> 0 | J61: УТ000018306
A62: Колесо VERTON ПЗУ-320\400\500\600\800 | B62: 01.7957.8216 | C62: 225 | D62: =C62-C62*$F$2/100 -> 225 | E62: 320 | F62: 0.0009 | G62: 0.2 | J62: УТ000008216
A63: Колесо транспортировочное для УПЗ | B63: 01.5919.6365 | C63: 260 | D63: =C63-C63*$F$2/100 -> 260 | E63: 340 | F63: 0.00078 | G63: 0.1 | J63: УТ000006365
A64: Колодка клеммная предохранителя VERTON ПЗУ-1000 | B64: 01.8881.18300 | D64: =C64-C64*$F$2/100 -> 0 | J64: УТ000018300
A65: Колодка клеммная силового провода VERTON ПЗУ-1000 | B65: 01.8881.18301 | D65: =C65-C65*$F$2/100 -> 0 | J65: УТ000018301
A66: Колодка клеммная силового провода VERTON ПЗУ-320\400 | B66: 01.7957.8075 | C66: 150 | D66: =C66-C66*$F$2/100 -> 150 | E66: 210 | F66: 6e-05 | G66: 0.1 | J66: УТ000008075
A67: Колодка клеммная силового провода VERTON ПЗУ-120/180 | B67: 01.7957.8064 | C67: 85 | D67: =C67-C67*$F$2/100 -> 85 | E67: 120 | F67: 2e-05 | G67: 0.05 | J67: УТ000008064
A68: Колодка клеммная силового провода VERTON ПЗУ-500/600 | B68: 01.8881.18319 | D68: =C68-C68*$F$2/100 -> 0 | J68: УТ000018319
A69: Колодка клеммная силового провода VERTON ПЗУ-800 | B69: 01.8881.18312 | D69: =C69-C69*$F$2/100 -> 0 | J69: УТ000018312
A70: Колодка клеммная силового провода VERTON ПЗУ-800 | B70: 01.8881.10547 | C70: 220 | D70: =C70-C70*$F$2/100 -> 220 | E70: 310 | F70: 2e-05 | G70: 0.05 | J70: УТ000010547
A71: Кольцо изолятор NB-125 (8 шт.) | B71: 01.8881.12527 | C71: 20 | D71: =C71-C71*$F$2/100 -> 20 | E71: 30 | F71: 0.112 | G71: 0.001 | J71: УТ000012527
A72: Кольцо стопорное колеса VERTON ПЗУ- 320\400\500\600\800 | B72: 01.9083.10531 | C72: 15 | D72: =C72-C72*$F$2/100 -> 15 | E72: 30 | F72: 0.03 | G72: 0.01 | J72: УТ000010531
A73: Комплект винтов NB-125 (4 шт.) | D73: =C73-C73*$F$2/100 -> 0 | J73: УТ000012702
A74: Комплект переходников для подкачки ПУ-1400 | B74: 01.15764.16674 | C74: 205 | D74: =C74-C74*$F$2/100 -> 205 | E74: 290 | J74: УТ000016674
A75: Компрессор в сборе ПУ-1400 | B75: 01.8881.16528 | C75: 920 | D75: =C75-C75*$F$2/100 -> 920 | E75: 1290 | F75: 0.00056 | G75: 0.25 | J75: УТ000016528
A76: Контактор VERTON ПЗУ-1000 | B76: 01.7957.8095 | C76: 1350 | D76: =C76-C76*$F$2/100 -> 1350 | E76: 1890 | F76: 0.00022 | G76: 0.35 | J76: УТ000008095
A77: Контактор ПЗУ-1000 | B77: 01.8881.18309 | D77: =C77-C77*$F$2/100 -> 0 | J77: УТ000018309
A78: Корпус NB-125 | B78: 01.8881.12526 | C78: 370 | D78: =C78-C78*$F$2/100 -> 370 | E78: 390 | F78: 0.00058 | G78: 0.2 | J78: УТ000012526
A79: Корпус VERTON NB-100 / 100E | B79: 01.8881.10354 | C79: 200 | D79: =C79-C79*$F$2/100 -> 200 | E79: 280 | F79: 0.00288 | G79: 0.6 | J79: УТ000010354
A80: Корпус VERTON ЗУ-10N | B80: 01.8881.10332 | C80: 200 | D80: =C80-C80*$F$2/100 -> 200 | E80: 280 | F80: 0.00316 | G80: 0.75 | J80: УТ000010332
A81: Корпус VERTON ЗУ-10Р | B81: 01.8881.10300 | C81: 200 | D81: =C81-C81*$F$2/100 -> 200 | E81: 280 | F81: 0.00192 | G81: 0.4 | J81: УТ000010300
A82: Корпус VERTON ЗУ-15 А | B82: 01.8881.10318 | C82: 200 | D82: =C82-C82*$F$2/100 -> 200 | E82: 280 | F82: 0.00192 | G82: 0.4 | J82: УТ000010318
A83: Корпус пластиковый ПАРМА УЗ-50 | B83: 01.8881.6625 | C83: 173 | D83: =C83-C83*$F$2/100 -> 173 | E83: 250 | F83: 0.00581 | G83: 0.3 | J83: УТ000006625
A84: Крепеж 4N-4 10N | B84: 01.8881.10346 | C84: 20 | D84: =C84-C84*$F$2/100 -> 20 | G84: 0.001 | J84: УТ000010346
A85: Крепеж 4N-4 10N 15 А | B85: 01.8881.10326 | C85: 65 | D85: =C85-C85*$F$2/100 -> 65 | G85: 0.001 | J85: УТ000010326
A86: Крепеж 4N-4 10Р | B86: 01.8881.10314 | C86: 65 | D86: =C86-C86*$F$2/100 -> 65 | G86: 0.001 | J86: УТ000010314
A87: Крокодилы с проводом в сборе для VERTON ПУ-1400 | B87: 01.8881.14541 | C87: 480 | D87: =C87-C87*$F$2/100 -> 480 | E87: 680 | J87: УТ000014541
A88: Кронштейн для ЖК-дисплея VERTON ЗУ-5 | B88: 01.7957.8044 | C88: 40 | D88: =C88-C88*$F$2/100 -> 40 | E88: 60 | F88: 0.082 | G88: 0.001 | J88: УТ000008044
A89: Крышка колеса VERTON ПЗУ- 320\400\500\600\800 | B89: 01.9083.10555 | C89: 15 | D89: =C89-C89*$F$2/100 -> 15 | E89: 30 | F89: 0.103 | G89: 0.01 | J89: УТ000010555
A90: Крышка пластиковая предохранителя VERTON ПЗУ-120\400 | B90: 01.9084.10527 | C90: 10 | D90: =C90-C90*$F$2/100 -> 10 | E90: 20 | F90: 0.1 | G90: 0.001 | J90: УТ000010527
A91: Крышка пластиковая предохранителя VERTON ПЗУ-180 | B91: 01.6185.6202 | C91: 500 | D91: =C91-C91*$F$2/100 -> 500 | E91: 700 | F91: 2e-05 | G91: 0.001 | J91: УТ000006202
A92: Лампа красная индикаторная VERTON ЗУ-10 N | B92: 01.8881.10339 | C92: 15 | D92: =C92-C92*$F$2/100 -> 15 | E92: 30 | F92: 0.01 | G92: 0.001 | J92: УТ000010339
A93: Мост диодный 100А VERTON ПЗУ-320 | B93: 01.9079.10530 | C93: 350 | D93: =C93-C93*$F$2/100 -> 350 | E93: 490 | F93: 0.00135 | G93: 0.3 | J93: УТ000010530
A94: Мост диодный 300А VERTON ПЗУ-400 | B94: 01.7957.8066 | C94: 1000 | D94: =C94-C94*$F$2/100 -> 1000 | E94: 1400 | F94: 0.00144 | G94: 0.35 | J94: УТ000008066
A95: Мост диодный 500А VERTON ПЗУ-320 | B95: 01.7957.8087 | C95: 1450 | D95: =C95-C95*$F$2/100 -> 1450 | E95: 2030 | F95: 0.00388 | G95: 1.1 | J95: УТ000008087
A96: Мост диодный VERTON ЗУ-10/15 (КВРС3510) | B96: 01.7957.8049 | C96: 140 | D96: =C96-C96*$F$2/100 -> 140 | E96: 200 | F96: 1e-05 | G96: 0.01 | J96: УТ000008049
A97: Мост диодный VERTON ЗУ-20 (КВРС5010) | B97: 01.7957.8056 | C97: 200 | D97: =C97-C97*$F$2/100 -> 200 | E97: 280 | F97: 4e-05 | G97: 0.01 | J97: УТ000008056
A98: Мост диодный VERTON ЗУ-30 (QL5010S) | B98: 01.7957.8060 | C98: 450 | D98: =C98-C98*$F$2/100 -> 450 | E98: 630 | F98: 0.00019 | G98: 0.15 | J98: УТ000008060
A99: Мост диодный VERTON ЗУ-40 (QL5010S) | B99: 01.9079.10060 | C99: 450 | D99: =C99-C99*$F$2/100 -> 450 | E99: 630 | F99: 0.00019 | G99: 0.15 | J99: УТ000010060
A100: Мост диодный VERTON ПЗУ-1000 | B100: 01.7957.8098 | C100: 3750 | D100: =C100-C100*$F$2/100 -> 3750 | E100: 5250 | F100: 0.00675 | G100: 1.7 | J100: УТ000008098
A101: Мост диодный VERTON ПЗУ-120/180/240/320 (WS/01-CD-320-05) | B101: 01.7957.8102 | C101: 845 | D101: =C101-C101*$F$2/100 -> 845 | E101: 1190 | F101: 0.0012 | G101: 0.3 | J101: УТ000008102
A102: Мост диодный VERTON ПЗУ-240 | B102: 01.7957.8072 | C102: 850 | D102: =C102-C102*$F$2/100 -> 850 | E102: 1190 | F102: 0.0012 | G102: 0.3 | J102: УТ000008072
A103: Мост диодный VERTON ПЗУ-400 (WS/01-CD-400-00) | B103: 01.8881.12750 | C103: 1000 | D103: =C103-C103*$F$2/100 -> 1000 | E103: 1400 | F103: 0.38 | G103: 0.35 | J103: УТ000012750
A104: Мост диодный VERTON ПЗУ-500/600 (WS/02-HIGHER-600-08) | B104: 01.7957.8083 | C104: 1150 | D104: =C104-C104*$F$2/100 -> 1150 | E104: 1610 | F104: 0.0024 | G104: 0.55 | J104: УТ000011302
A105: Мост диодный VERTON ПЗУ-800 | B105: 01.8881.16526 | C105: 3225 | D105: =C105-C105*$F$2/100 -> 3225 | E105: 4520 | J105: УТ000016526
A106: Мультиметр VERTON NB-100 | B106: 01.8881.10355 | C106: 200 | D106: =C106-C106*$F$2/100 -> 200 | E106: 280 | F106: 0.00032 | G106: 0.1 | J106: УТ000010355
A107: Наклейка на панель NB100E | B107: 01.2367.10934 | D107: =C107-C107*$F$2/100 -> 0 | F107: 2e-05 | G107: 0.002 | J107: УТ000010934
A108: Наклейка на панель ЗУ10И | B108: 01.2367.10935 | D108: =C108-C108*$F$2/100 -> 0 | G108: 0.001 | J108: УТ000010935
A109: Нижняя панель корпуса ПЗУ VERTON 1000 | B109: 01.8881.18308 | D109: =C109-C109*$F$2/100 -> 0 | J109: УТ000018308
A110: Нижняя скоба ПЗУ-120/180 | B110: 01.9084.10065 | C110: 200 | D110: =C110-C110*$F$2/100 -> 200 | G110: 0.05 | J110: УТ000010065
A111: Ножка опорная VERTON ЗУ-10/40 ПЗУ-120/240 | B111: 01.9084.10057 | C111: 100 | D111: =C111-C111*$F$2/100 -> 100 | E111: 140 | F111: 0.07 | G111: 0.009 | J111: УТ000010057
A112: Ножка опорная VERTON ЗУ-10N | B112: 01.8881.10350 | C112: 25 | D112: =C112-C112*$F$2/100 -> 25 | E112: 40 | F112: 0.07 | G112: 0.009 | J112: УТ000010350
A113: Опора нижняя VERTON ПЗУ-500/600 | B113: 01.8881.18316 | D113: =C113-C113*$F$2/100 -> 0 | J113: УТ000018316
A114: Опора нижняя VERTON ПЗУ-800 | B114: 01.8881.18310 | D114: =C114-C114*$F$2/100 -> 0 | J114: УТ000018310
A115: Панель задняя VERTON ПЗУ-500/600 | B115: 01.8881.18314 | D115: =C115-C115*$F$2/100 -> 0 | J115: УТ000018314
A116: Панель корпуса задняя ПЗУ VERTON 1000 | B116: 01.8881.18305 | D116: =C116-C116*$F$2/100 -> 0 | J116: УТ000018305
A117: Панель корпуса передняя ПЗУ VERTON 1000 | B117: 01.8881.18298 | D117: =C117-C117*$F$2/100 -> 0 | J117: УТ000018298
A118: Панель нижняя VERTON ЗУ-10/15/20/30 | B118: 01.9084.10056 | C118: 145 | D118: =C118-C118*$F$2/100 -> 145 | E118: 210 | F118: 0.62 | G118: 0.8 | J118: УТ000010056
A119: Панель нижняя VERTON ПЗУ-120/180 | B119: 01.9084.10064 | C119: 200 | D119: =C119-C119*$F$2/100 -> 200 | E119: 280 | F119: 0.87 | G119: 1.25 | J119: УТ000010064
A120: Панель пластиковая VERTON ЗУ-10/15/20 | B120: 01.6185.6193 | C120: 220 | D120: =C120-C120*$F$2/100 -> 220 | E120: 310 | F120: 0.56 | G120: 0.2 | J120: УТ000006193
A121: Панель пластиковая VERTON ЗУ-30/40,ПЗУ 120/180/240 | B121: 01.6185.6194 | C121: 315 | D121: =C121-C121*$F$2/100 -> 315 | E121: 450 | F121: 0.66 | G121: 0.35 | J121: УТ000006194
A122: Передняя панель корпуса ПЗУ VERTON 800 | B122: 01.8881.18311 | D122: =C122-C122*$F$2/100 -> 0 | J122: УТ000018311
A123: Переключатель VERTON 12/24 белый ЗУ-20 (KCD-25А) | B123: 01.7957.8055 | C123: 150 | D123: =C123-C123*$F$2/100 -> 150 | E123: 210 | F123: 0.09 | G123: 0.01 | J123: УТ000008055
A124: Переключатель VERTON 12/24 широкий белый ЗУ-30 (KCD-30А) | B124: 01.7957.8059 | C124: 200 | D124: =C124-C124*$F$2/100 -> 200 | E124: 280 | F124: 0.09 | G124: 0.01 | J124: УТ000008059
A125: Переключатель VERTON для ЗУ-10/15/20/30/40, ПЗУ-120/180/320/400 | B125: 01.6185.6205 | C125: 125 | D125: =C125-C125*$F$2/100 -> 125 | E125: 180 | F125: 0.035 | G125: 0.01 | J125: УТ000006205
A126: Переключатель VERTON красный ЗУ-10Р | B126: 01.8881.10309 | C126: 15 | D126: =C126-C126*$F$2/100 -> 15 | E126: 30 | F126: 0.018 | G126: 0.003 | J126: УТ000010309
A127: Переключатель пакетный VERTON ПЗУ-1000 | B127: 01.7957.8090 | C127: 1045 | D127: =C127-C127*$F$2/100 -> 1045 | E127: 1470 | F127: 0.21 | G127: 0.2 | J127: УТ000008090
A128: Переключатель пакетный VERTON ПЗУ-500\600 | B128: 01.7957.8081 | C128: 625 | D128: =C128-C128*$F$2/100 -> 625 | E128: 880 | F128: 0.16 | G128: 0.1 | J128: УТ000008081
A129: Переключатель пакетный ПЗУ-800 | B129: 01.9078.6732 | C129: 1025 | D129: =C129-C129*$F$2/100 -> 1025 | E129: 1970 | J129: УТ000006732
A130: Переключатель ПЗУ 12V-24V | B130: 01.9078.6623 | C130: 300 | D130: =C130-C130*$F$2/100 -> 300 | E130: 420 | F130: 0.09 | G130: 0.01 | J130: УТ000006623
A131: Переключатель режимов ЗУ 10-240/ПЗУ 320-400 | B131: 01.5917.6208 | C131: 55 | D131: =C131-C131*$F$2/100 -> 55 | E131: 80 | G131: 0.001 | J131: УТ000006208
A132: Переключатель режимов УПЗ-500/600 | B132: 02.010.00374 | C132: 590 | D132: =C132-C132*$F$2/100 -> 590 | E132: 770 | J132: УТ000014701
A133: Переключатель управления ПЗУ-1000 | B133: 01.8881.18304 | D133: =C133-C133*$F$2/100 -> 0 | J133: УТ000018304
A134: Пластик нижний VERTON ЗУ-40 | B134: 01.9084.10061 | C134: 215 | D134: =C134-C134*$F$2/100 -> 215 | E134: 310 | F134: 0.76 | G134: 1.2 | J134: УТ000010061
A135: Пластик передней консоли VERTON ЗУ-10Р | B135: 01.8881.10301 | C135: 125 | D135: =C135-C135*$F$2/100 -> 125 | E135: 180 | F135: 0.29 | G135: 0.05 | J135: УТ000010301
A136: Плата материнская VERTON ЗУ-10N | B136: 01.8881.10330 | C136: 620 | D136: =C136-C136*$F$2/100 -> 620 | E136: 870 | F136: 0.00018 | G136: 0.05 | J136: УТ000010330
A137: Плата материнская VERTON ЗУ-10Р | B137: 01.8881.10302 | C137: 620 | D137: =C137-C137*$F$2/100 -> 620 | E137: 870 | F137: 0.2 | G137: 0.05 | J137: УТ000010302
A138: Плата материнская VERTON ЗУ-15 А | B138: 01.8881.10320 | C138: 620 | D138: =C138-C138*$F$2/100 -> 620 | E138: 870 | F138: 0.27 | G138: 0.2 | J138: УТ000010320
A139: Плата печатная VERTON ЗУ-10Р | B139: 01.8881.10303 | C139: 375 | D139: =C139-C139*$F$2/100 -> 375 | E139: 530 | F139: 0.19 | G139: 0.1 | J139: УТ000010303
A140: Плата управления компрессором ПУ-1400 | B140: 01.8881.15447 | C140: 1130 | D140: =C140-C140*$F$2/100 -> 1130 | E140: 1590 | J140: УТ000015447
A141: Плата управления компрессором ПУ-1400 | B141: 01.15764.16669 | C141: 480 | D141: =C141-C141*$F$2/100 -> 480 | E141: 680 | J141: УТ000016669
A142: Предохранитель 110А ПЗУ-600 | B142: 01.7957.8103 | C142: 80 | D142: =C142-C142*$F$2/100 -> 80 | E142: 120 | F142: 0.052 | G142: 0.001 | J142: УТ000008103
A143: Предохранитель VERTON 110 А ПЗУ-500/600 | B143: 01.6185.6204 | C143: 30 | D143: =C143-C143*$F$2/100 -> 30 | E143: 50 | J143: УТ000006204
A144: Предохранитель VERTON 15А ЗУ-10/15 | B144: 01.6185.6199 | C144: 20 | D144: =C144-C144*$F$2/100 -> 20 | E144: 50 | F144: 0.113 | G144: 0.002 | J144: УТ000006199
A145: Предохранитель VERTON 2 А ЗУ-10N | B145: 01.8881.10344 | C145: 30 | D145: =C145-C145*$F$2/100 -> 30 | E145: 60 | F145: 0.028 | G145: 0.001 | J145: УТ000010344
A146: Предохранитель VERTON 30А ЗУ-20/30 | B146: 01.7957.8069 | C146: 45 | D146: =C146-C146*$F$2/100 -> 45 | E146: 80 | F146: 0.033 | G146: 0.002 | J146: УТ000008214
A147: Предохранитель VERTON 40 А ЗУ-40 | B147: 01.6185.6201 | C147: 20 | D147: =C147-C147*$F$2/100 -> 20 | E147: 10 | F147: 0.023 | G147: 0.002 | J147: УТ000006201
A148: Предохранитель VERTON 400 A ПЗУ-800 | B148: 01.7957.8085 | C148: 185 | D148: =C148-C148*$F$2/100 -> 185 | E148: 260 | F148: 0.072 | G148: 0.05 | J148: УТ000008085
A149: Предохранитель VERTON 50 A ПЗУ-180\120\240\320\400 | B149: 01.8881.8069 | C149: 80 | D149: =C149-C149*$F$2/100 -> 80 | E149: 120 | F149: 0.023 | G149: 0.002 | J149: УТ000008069
A150: Предохранитель VERTON 500А ПЗУ-1000 | B150: 01.7957.8104 | C150: 300 | D150: =C150-C150*$F$2/100 -> 300 | E150: 420 | F150: 2e-05 | G150: 0.01 | J150: УТ000008104
A151: Провод силовой с крокодилом (коплект +/-) | B151: 01.8881.16527 | C151: 7415 | D151: =C151-C151*$F$2/100 -> 7415 | E151: 10390 | J151: УТ000016527
A152: Провода с зажимами (Крокодилами) VERTON ЗУ-10N | B152: 01.8881.10334 | C152: 200 | D152: =C152-C152*$F$2/100 -> 200 | E152: 280 | F152: 0.22 | G152: 0.05 | J152: УТ000010334
A153: Провода с зажимами (Крокодилами) VERTON ЗУ-10Р | B153: 01.8881.10307 | C153: 200 | D153: =C153-C153*$F$2/100 -> 200 | E153: 280 | F153: 0.13 | G153: 0.06 | J153: УТ000010307
A154: Провода с зажимами (Крокодилами) VERTON ЗУ-15А | B154: 01.8881.10323 | C154: 200 | D154: =C154-C154*$F$2/100 -> 200 | E154: 280 | F154: 0.00036 | G154: 0.1 | J154: УТ000010323
A155: Радиатор VERTON ЗУ-10N | B155: 01.8881.10336 | C155: 220 | D155: =C155-C155*$F$2/100 -> 220 | E155: 310 | F155: 0.06 | G155: 0.008 | J155: УТ000010336
A156: Разветвитель VERTON ПЗУ-1000 | B156: 01.7957.8099 | C156: 475 | D156: =C156-C156*$F$2/100 -> 475 | E156: 670 | F156: 0.11 | G156: 0.05 | J156: УТ000008099
A157: Разветвитель VERTON ПЗУ-120 | B157: 01.9328.10066 | C157: 200 | D157: =C157-C157*$F$2/100 -> 200 | E157: 280 | F157: 0.078 | G157: 0.03 | J157: УТ000010066
A158: Разветвитель VERTON ПЗУ-240 | B158: 01.7957.8071 | C158: 250 | D158: =C158-C158*$F$2/100 -> 250 | E158: 350 | F158: 0.078 | G158: 0.03 | J158: УТ000008071
A159: Разъём кабеля ПЗУ-1000 | B159: 01.8881.18299 | D159: =C159-C159*$F$2/100 -> 0 | J159: УТ000018299
A160: Регулятор напряжения ЗУ10/15/20 | B160: 01.2367.10931 | C160: 420 | D160: =C160-C160*$F$2/100 -> 420 | E160: 590 | F160: 0.07 | G160: 0.003 | J160: УТ000010931
A161: Рукоятка VERTON ЗУ-10 Р | B161: 01.8881.10305 | C161: 30 | D161: =C161-C161*$F$2/100 -> 30 | E161: 50 | F161: 0.152 | G161: 0.01 | J161: УТ000011314
A162: Рукоятка VERTON ЗУ-10/40 | B162: 01.9084.10053 | C162: 60 | D162: =C162-C162*$F$2/100 -> 60 | E162: 90 | F162: 0.192 | G162: 0.03 | J162: УТ000011316
A163: Рукоятка VERTON ЗУ-10N | B163: 01.8881.10347 | C163: 30 | D163: =C163-C163*$F$2/100 -> 30 | E163: 50 | F163: 0.152 | G163: 0.01 | J163: УТ000011315
A164: Рукоятка пластиковая VERTON ПЗУ-320\400 | B164: 01.6185.6210 | C164: 325 | D164: =C164-C164*$F$2/100 -> 325 | E164: 460 | F164: 0.6 | G164: 0.3 | J164: УТ000006210
A165: Рукоятка пластиковая VERTON ПЗУ-500/600 | B165: 01.6185.6211 | C165: 410 | D165: =C165-C165*$F$2/100 -> 410 | E165: 580 | J165: УТ000006211
A166: Рукоятка пластиковая VERTON ПЗУ-800 | B166: 01.7957.8660 | C166: 475 | D166: =C166-C166*$F$2/100 -> 475 | E166: 670 | F166: 0.71 | G166: 0.4 | J166: УТ000008660
A167: Рукоятка пластиковая таймера VERTON ПЗУ-500/600 | B167: 01.7957.8082 | C167: 50 | D167: =C167-C167*$F$2/100 -> 50 | E167: 70 | F167: 0.08 | G167: 0.05 | J167: УТ000011312
A168: Рукоятка транспортировочная пластиковая ПЗУ-1000 | B168: 01.8881.12244 | C168: 50 | D168: =C168-C168*$F$2/100 -> 50 | E168: 70 | F168: 0.32 | G168: 0.1 | J168: УТ000012244
A169: Рукоятка транспортировочная пластиковая мод.2 ПЗУ-1000 | B169: 01.8881.12245 | C169: 150 | D169: =C169-C169*$F$2/100 -> 150 | E169: 210 | F169: 0.32 | G169: 0.1 | J169: УТ000012245
A170: Ручка пакетного переключателя VERTON ПЗУ-500/600 | B170: 01.02.104.000 | C170: 30 | D170: =C170-C170*$F$2/100 -> 30 | E170: 50 | F170: 0.09 | G170: 0.002 | J170: УТ000003962
A171: Ручка тестера NB-125 | B171: 01.8881.12529 | C171: 15 | D171: =C171-C171*$F$2/100 -> 15 | E171: 20 | J171: УТ000012529
A172: Силовой провод с крокодилом (-) (VERTON) ПЗУ-320 | B172: 01.9080.10992 | C172: 1880 | D172: =C172-C172*$F$2/100 -> 1880 | E172: 2640 | F172: 0.0028 | G172: 0.35 | J172: УТ000010992
A173: Силовой провод с крокодилом (-) (VERTON) ПЗУ-400 | B173: 01.9080.10994 | C173: 490 | D173: =C173-C173*$F$2/100 -> 490 | E173: 690 | F173: 0.0168 | G173: 0.35 | J173: УТ000010994
A174: Силовой провод с крокодилом (-) (VERTON) ПЗУ-500/600 | B174: 01.8881.18317 | D174: =C174-C174*$F$2/100 -> 0 | J174: УТ000018317
A175: Силовой провод с крокодилом (-) (VERTON) ПЗУ-800/1000 | B175: 01.9080.10996 | C175: 1090 | D175: =C175-C175*$F$2/100 -> 1090 | E175: 1530 | F175: 0.00625 | G175: 0.75 | J175: УТ000010996
A176: Силовой провод с крокодилом (+) (VERTON) ПЗУ-320 | B176: 01.9080.10991 | C176: 975 | D176: =C176-C176*$F$2/100 -> 975 | E176: 1370 | G176: 0.35 | J176: УТ000010991
A177: Силовой провод с крокодилом (+) (VERTON) ПЗУ-400 | B177: 01.9080.10993 | C177: 265 | D177: =C177-C177*$F$2/100 -> 265 | E177: 380 | F177: 0.47 | G177: 0.35 | J177: УТ000010993
A178: Силовой провод с крокодилом (+) (VERTON) ПЗУ-500/600 | B178: 01.8881.18318 | D178: =C178-C178*$F$2/100 -> 0 | J178: УТ000018318
A179: Силовой провод с крокодилом (+) (VERTON) ПЗУ-800/1000 | B179: 01.9080.10995 | C179: 1090 | D179: =C179-C179*$F$2/100 -> 1090 | E179: 1530 | F179: 0.6 | G179: 0.75 | J179: УТ000010995
A180: Скоба двойная VERTON ЗУ-10 Р | B180: 01.8881.10313 | C180: 90 | D180: =C180-C180*$F$2/100 -> 90 | E180: 130 | F180: 0.127 | G180: 0.004 | J180: УТ000010313
A181: Соединительная линия | B181: 01.8881.10342 | C181: 65 | D181: =C181-C181*$F$2/100 -> 65 | G181: 0.0001 | J181: УТ000010342
A182: Соединительная линия 2р для 10 N | B182: 01.8881.10341 | C182: 65 | D182: =C182-C182*$F$2/100 -> 65 | G182: 0.0001 | J182: УТ000010341
A183: Соединительная линия 2р для 10 Р | B183: 01.8881.10311 | C183: 65 | D183: =C183-C183*$F$2/100 -> 65 | G183: 0.0001 | J183: УТ000010311
A184: Соединительная линия 3р для 10 N | B184: 01.8881.10340 | C184: 65 | D184: =C184-C184*$F$2/100 -> 65 | G184: 0.0001 | J184: УТ000010340
A185: Соединительная линия 7р для 10 Р | B185: 01.8881.10312 | C185: 150 | D185: =C185-C185*$F$2/100 -> 150 | G185: 0.0001 | J185: УТ000010312
A186: Таймер VERTON ПЗУ-500\600 | B186: 01.9077.6426 | C186: 40 | D186: =C186-C186*$F$2/100 -> 40 | E186: 60 | F186: 0.14 | G186: 0.1 | J186: УТ000006426
A187: Таймер ПЗУ VERTON ПЗУ-800 | B187: 01.8881.10549 | C187: 370 | D187: =C187-C187*$F$2/100 -> 370 | E187: 520 | F187: 0.14 | G187: 0.1 | J187: УТ000010549
A188: Термостат перегрева VERTON ПЗУ-1000 (таблетка) | B188: 01.7957.8097 | C188: 50 | D188: =C188-C188*$F$2/100 -> 50 | E188: 70 | F188: 0.07 | G188: 0.008 | J188: УТ000008097
A189: Тиристор VERTON ЗУ-10N (TYN812C333) | B189: 01.8881.10348 | C189: 145 | D189: =C189-C189*$F$2/100 -> 145 | E189: 210 | F189: 0.08 | G189: 0.004 | J189: УТ000010348
A190: Трансформатор VERTON ЗУ-10 (МАХ/СВ-10/15) | B190: 01.7957.8050 | C190: 855 | D190: =C190-C190*$F$2/100 -> 855 | E190: 1200 | F190: 0.25 | G190: 1.95 | J190: УТ000008050
A191: Трансформатор VERTON ЗУ-10N | B191: 01.8881.10331 | C191: 160 | D191: =C191-C191*$F$2/100 -> 160 | E191: 230 | F191: 0.08 | G191: 0.05 | J191: УТ000010331
A192: Трансформатор VERTON ЗУ-15 (МАХ-15) | B192: 01.7957.8053 | C192: 895 | D192: =C192-C192*$F$2/100 -> 895 | E192: 1260 | F192: 0.88 | G192: 2 | J192: УТ000008053
A193: Трансформатор VERTON ЗУ-20 (МАХ-20) | B193: 01.7957.8057 | C193: 1345 | D193: =C193-C193*$F$2/100 -> 1345 | E193: 1890 | F193: 0.25 | G193: 2.05 | J193: УТ000008057
A194: Трансформатор VERTON ЗУ-30 (В12Р06;МАХ-30) | B194: 01.7957.8061 | C194: 1470 | D194: =C194-C194*$F$2/100 -> 1470 | E194: 2060 | F194: 0.25 | G194: 2.1 | J194: УТ000008061
A195: Трансформатор VERTON ЗУ-40 | B195: 01.9328.10062 | C195: 1790 | D195: =C195-C195*$F$2/100 -> 1790 | E195: 2510 | J195: УТ000010062
A196: Трансформатор VERTON ЗУ-5 | B196: 01.7957.8100 | C196: 60 | D196: =C196-C196*$F$2/100 -> 60 | E196: 90 | F196: 0.08 | G196: 0.05 | J196: УТ000008100
A197: Трансформатор VERTON ПЗУ-1000 | B197: 01.8881.8096 | C197: 21590 | D197: =C197-C197*$F$2/100 -> 21590 | E197: 30230 | F197: 0.68 | G197: 30 | J197: УТ000008096
A198: Трансформатор VERTON ПЗУ-120 (CD-30RE;MAX-30R) | B198: 01.7957.8065 | C198: 2560 | D198: =C198-C198*$F$2/100 -> 2560 | E198: 3590 | F198: 0.38 | G198: 4.25 | J198: УТ000008065
A199: Трансформатор VERTON ПЗУ-180 (А15Х02;CD-40RE) | B199: 01.7957.8070 | C199: 3340 | D199: =C199-C199*$F$2/100 -> 3340 | E199: 4680 | F199: 0.38 | G199: 4.25 | J199: УТ000008070
A200: Трансформатор VERTON ПЗУ-240 | B200: 01.7957.8073 | C200: 1520 | D200: =C200-C200*$F$2/100 -> 1520 | E200: 2130 | F200: 0.38 | G200: 4.25 | J200: УТ000008073
A201: Трансформатор VERTON ПЗУ-320 (АР103;CD-40RE) | B201: 01.7957.8074 | C201: 2000 | D201: =C201-C201*$F$2/100 -> 2000 | E201: 2800 | F201: 0.36 | G201: 4.3 | J201: УТ000008074
... 3549 more rows
